Workbook

Sheet LDC Info
AA3: Algoma Power Inc.
AA4: Atikokan Hydro Inc.
AA5: Attawapiskat Power Corporation
AA6: Bluewater Power Distribution Corp.
AA7: Brant County Power
AA8: Brantford Power Inc.
AA9: Burlington Hydro Inc.
AA10: Cambridge and North Dumfries Hydro
AA11: Canadian Niagara Power Inc. – Eastern Ontario Power/Fort Erie/Port Colborne
AA12: Centre Wellington Hydro Ltd.
AA13: Chapleau Public Utilities Corporation
D14: Utility Name | E14: Whitby Hydro Electric Corporation | AA14: COLLUS Power Corp.
AA15: Cooperative Hydro Embrun Inc.
D16: Assigned EB Number | E16: EB-2015-0113 | AA16: E.L.K. Energy Inc.
AA17: Enersource Hydro Mississauga Inc.
D18: Name of Contact and Title | E18: Susan Reffle, Vice President | AA18: Entegrus Powerlines Inc.
AA19: ENWIN Utilities Ltd.
D20: Phone Number | E20: 905 444-1983 | AA20: Erie Thames Powerlines Corp.
AA21: Espanola Regional Hydro Distribution Corporation
D22: Email Address | E22: sreffle@whitbyhydro.on.ca | AA22: Essex Powerlines Corporation
AA23: Festival Hydro Inc.
D24: Test Year | E24: 2016 | AA24: Fort Albany Power Corporation
AA25: Fort Frances Power Corporation
D26: Bridge Year | E26: 2015 | AA26: Greater Sudbury Hydro Inc.
AA27: Grimsby Power Inc.
D28: Last Rebasing Year | E28: 2011 | AA28: Guelph Hydro Electric Systems Inc.
AA29: Haldimand County Hydro Inc.
A30: Identify the accounting standard used for the test year
E31: MIFRS
A33: Did you update your depreciation and capitalization policies?
E34: Yes
A36: When did you update your depreciation and capitalization policies?
E37: 2001-01-01 | F37: 2013
A39: Identify the year that the applicant has adopted or is expected to adopt IFRS for financial reporting purposes
E40: 2015 or Later
A43: Are you applying for cost recovery for the test and/or future year(s) for Green Energy initiatives?
E44: No
A46: ="Is " & E14 & " an embedded distributor?" -> Is Whitby Hydro Electric Corporation an embedded distributor? | E46: No
B49: Notes | AA49: Guelph Hydro Electric Systems Inc.
AA50: Halton Hills Hydro Inc.
C51: Pale green cells represent input cells. | AA51: Hearst Power Distribution Co. Ltd.
AA52: Horizon Utilities Corporation
C53: Pale blue cells represent drop-down lists. The applicant should select the appropriate item from the drop-down list. | AA53: Hydro 2000 Inc.
AA54: Hydro Hawkesbury Inc.
C55: White cells contain fixed values, automatically generated values or formulae. | AA55: Hydro One Brampton Networks Inc.
AA56: Hydro One Networks Inc.
AA57: Hydro One Remote Communities Inc.
AA58: Hydro Ottawa Limited
AA59: Innisfil Hydro Dist. Systems Limited
AA60: Kashechewan Power Corporation
AA61: Kenora Hydro Electric Corporation Ltd.
AA62: Kingston Hydro Corporation
AA63: Kitchener-Wilmot Hydro Inc.
AA64: Lakefront Utilities Inc.
AA65: Lakeland Power Distribution Ltd.
AA66: London Hydro Inc.
AA67: Midland Power Utility Corporation
AA68: Milton Hydro Distribution Inc.
AA69: Newmarket – Tay Power Distribution Ltd.
AA70: Niagara Peninsula Energy Inc.
AA71: Niagara-on-the-Lake Hydro Inc.
AA72: Norfolk Power Distribution Ltd.
AA73: North Bay Hydro Distribution Limited
AA74: Northern Ontario Wires Inc.
AA75: Oakville Hydro Distribution Inc.
AA76: Orangeville Hydro Limited
AA77: Orillia Power Distribution Corp.
AA78: Oshawa PUC Networks Inc.
AA79: Ottawa River Power Corporation
AA80: Parry Sound Power Corporation
AA81: Peterborough Distribution Inc.
AA82: PowerStream Inc.
AA83: PUC Distribution Inc.
AA84: Renfrew Hydro Inc.
AA85: Rideau St. Lawrence Distribution Inc.
AA86: St. Thomas Energy Inc.
AA87: Sioux Lookout Hydro Inc.
AA88: Thunder Bay Hydro Electricity Distribution
AA89: Tillsonburg Hydro Inc.
AA90: Toronto Hydro-Electric System Limited
AA91: Veridian Connections Inc.
AA92: Wasaga Distribution Inc.
AA93: Waterloo North Hydro Inc.
AA94: Welland Hydro Electric System Corp.
AA95: Wellington North Power Inc.
AA96: West Coast Huron Energy Inc.
AA97: Westario Power Inc.
AA98: Whitby Hydro Electric Corporation
AA99: Woodstock Hydro Services Inc.

Sheet Table of Contents
A15: 1 | B15: LDC Information Sheet | E15: 26 | F15: App.2-FC: Calculation of Renewable Generation Connection Direct Benefits/Provincial Amount: Renewable Expansion Investments
A16: 2 | B16: Index | E16: 27 | F16: App.2-G: Service Reliability Indicators
A17: 3 | B17: Cost of Service Application Flowchart | E17: 28 | F17: App.2-H: Other Operating Revenue
A18: 4 | B18: List of Key References | E18: 29 | F18: App.2-I: Load Forecast CDM Adjustment Workform
A19: 5 | B19: App.2-AA: Capital Projects Table | E19: 30 | F19: App.2-IA: Actual and Forecast Load and Customer Data
A20: 6 | B20: App.2-AB: Capital Expenditures | E20: 31 | F20: App.2-JA: OM&A Summary Analysis
A21: 7 | B21: App. 2-AC: Customer Engagement Worksheet | E21: 32 | F21: App.2-JB: Recoverable OM&A Cost Driver Table
A22: 8 | B22: App.2-B: General Accounting Instructions | E22: 33 | F22: App.2-JC: OMA Programs Table
A23: 9 | B23: App.2-BA: Fixed Asset Continuity Schedule | E23: 34 | F23: App.2-K: Employee Costs
A24: 10 | B24: Appendix 2-BB: Service Life Comparison | E24: 35 | F24: App.2-L: Recoverable OM&A Cost per Customer and per FTE
A25: 11 | B25: App.2-CA: 2012 Depreciation and Amortization Expense (Old CGAAP) | E25: 36 | F25: App.2-M: Regulatory Costs Schedule
A26: 12 | B26: App.2-CB: 2012 Depreciation and Amortization Expense (New CGAAP) | E26: 37 | F26: App.2-N: Shared Servcies and Corporate Cost Allocation
A27: 13 | B27: App.2-CC: 2013 Depreciation and Amortization Expense (New CGAAP) | E27: 38 | F27: App.2-OA: Capital Structure and Cost of Capital
A28: 14 | B28: App.2-CD: 2014 Depreciation and Amortization Expense (MIFRS) | E28: 39 | F28: App.2-OB: Debt Instruments
A29: 15 | B29: App.2-CE: 2015 Depreciation and Amortization Expense (MIFRS) | E29: 40 | F29: App.2-P: Cost Allocation
A30: 16 | B30: App.2-CF: 2013 Depreciation and Amortization Expense (Old CGAAP) | E30: 41 | F30: App.2-Q: Cost of Serving Embedded Distributor(s)
A31: 17 | B31: App.2-CG: 2013 Depreciation and Amortization Expense (New CGAAP) | E31: 42 | F31: App.2-R: Loss Factors
A32: 18 | B32: App.2-CH: 2014 Depreciation and Amortization Expense (MIFRS) | E32: 43 | F32: App.2-S: Stranded Meter Treatment
A33: 19 | B33: App.2-CI: 2015 Depreciation and Amortization Expense (MIFRS) | E33: 44 | F33: App.2-TA: Account 1592, PILs and Tax Variances
A34: 20 | B34: App.2-D: Overhead Expenses | E34: 45 | F34: App.2-TB: Account 1592, HST-OVAT Input Tax Credits
A35: 21 | B35: App.2-EA: Account 1575 PP&E Deferral Account (2015 IFRS Adopters) | E35: 46 | F35: App.2-U: One-Time Incremental IFRS Transition Costs
A36: 22 | B36: App.2-EB: Account 1576 - Accounting Changes Under CGAAP (2012 Changes) | E36: 47 | F36: App.2-V: Revenue Reconciliation
A37: 23 | B37: App.2-EC: Account 1576 - Accounting Changes Under CGAAP (2013 Changes) | E37: 48 | F37: App.2-W: Bill Impacts
A38: 24 | B38: App.2-FA: Renewable Generation Connection Investment Summary | E38: 49 | F38: App.2-Y: Transition to MIFRS Summary Impact
A39: 25 | B39: App.2-FB: Calculation of Renewable Generation Connection Direct Benefits/Provincial Amount: Renewable Enabling Improvement Investments | E39: 50 | F39: App. 2-Z: Tariff Schedule

Sheet COS Flowchart
B4: Cost of Service Rate Application Schematic
B6: The Cost of Service Rate Application Schematic is a flowchart appended to Chapter 2 of the Filing Requirements as a guide for the components of an application and how demand and costs interrelate to derive the revenue requirement and then how the revenue requirement is allocated between classes and through fixed/variable splits to derive rates that will be compensatory for the annual revenue requirement, based on the the forecasted demand. There is no form to be filled out; therefore, this Schedule is not required to be filed.

Sheet List of Key References
B3: List of Key References
A5: A list of key references for understanding the Filing Requirements has been embedded in the document below. To access the list of references and associated hyperlinks doublt click the icon below.

Sheet App.2-AA_Capital Projects
G1: File Number: | H1: =EBNUMBER -> EB-2015-0113
G2: Exhibit:
G3: Tab:
G4: Schedule:
G5: Page:
G7: Date:
A9: Appendix 2-AA
A10: Capital Projects Table
A13: Projects | B13: =C13-1 -> 2011 | C13: =D13-1 -> 2012 | D13: =E13-1 -> 2013 | E13: =BridgeYear - 1 -> 2014 | F13: =BridgeYear & " Bridge Year" -> 2015 Bridge Year | G13: =TestYear & " Test Year" -> 2016 Test Year
A14: Reporting Basis
A15: Project Name #1
A21: Sub-Total | B21: =SUM(B16:B20) -> 0 | C21: 0 | D21: 0 | E21: 0 | F21: 0 | G21: 0
A22: Project Name #2
A28: Sub-Total | B28: =SUM(B23:B27) -> 0 | C28: 0 | D28: 0 | E28: 0 | F28: 0 | G28: 0
A29: Project Name #3
A35: Sub-Total | B35: =SUM(B30:B34) -> 0 | C35: 0 | D35: 0 | E35: 0 | F35: 0 | G35: 0
A36: Project Name #4
A42: Sub-Total | B42: =SUM(B37:B41) -> 0 | C42: 0 | D42: 0 | E42: 0 | F42: 0 | G42: 0
A43: Miscellaneous
A44: Total | B44: =SUMPRODUCT(--($A15:$A43="Sub-Total"), B$15:B$43)+B43 -> 0 | C44: 0 | D44: 0 | E44: 0 | F44: 0 | G44: 0
A45: Less Renewable Generation Facility Assets and Other Non Rate-Regulated Utility Assets (input as negative)
A46: Total | B46: =B44+B45 -> 0 | C46: 0 | D46: 0 | E46: 0 | F46: 0 | G46: 0
A50: Notes:
A52: 1 Please provide a breakdown of the major components of each capital project undertaken in each year. Please ensure that all projects below the materiality threshold are included in the miscellaneous line. Add more projects as required.
A53: 2 The applicant should group projects appropriately and avoid presentations that result in classification of significant components of the capital budget in the miscellaneous category.

Sheet App.2-AB_Capital Expenditures
S1: File Number: | U1: =EBNUMBER -> EB-2015-0113
S2: Exhibit:
S3: Tab:
S4: Schedule:
S5: Page:
S7: Date:
A9: Appendix 2-AB
A10: Table 2 - Capital Expenditure Summary from Chapter 5 Consolidated Distribution System Plan Filing Requirements
A12: First year of Forecast Period: | B12: =TestYear -> 2016
A13: CATEGORY | B13: Historical Period (previous plan1 & actual) | Q13: Forecast Period (planned)
B14: =E14-1 -> 2011 | E14: =H14-1 -> 2012 | H14: =K14-1 -> 2013 | K14: =N14-1 -> 2014 | N14: =Q14-1 -> 2015 | Q14: =B12 -> 2016 | R14: =Q14+1 -> 2017 | S14: =R14+1 -> 2018 | T14: =S14+1 -> 2019 | U14: =T14+1 -> 2020
B15: Plan | C15: Actual | D15: Var | E15: Plan | F15: Actual | G15: Var | H15: Plan | I15: Actual | J15: Var | K15: Plan | L15: Actual | M15: Var | N15: Plan | O15: Actual2 | P15: Var
B16: $ '000 | D16: % | E16: $ '000 | G16: % | H16: $ '000 | J16: % | K16: $ '000 | M16: % | N16: $ '000 | P16: % | Q16: $ '000
A17: System Access | D17: =IF(ISERROR((C17-B17)/B17),"--",(C17-B17)/B17) -> -- | G17: =IF(ISERROR((F17-E17)/E17),"--",(F17-E17)/E17) -> -- | J17: =IF(ISERROR((I17-H17)/H17),"--",(I17-H17)/H17) -> -- | M17: =IF(ISERROR((L17-K17)/K17),"--",(L17-K17)/K17) -> -- | P17: =IF(ISERROR((O17-N17)/N17),"--",(O17-N17)/N17) -> --
A18: System Renewal | D18: -- | G18: -- | J18: -- | M18: -- | P18: --
A19: System Service | D19: -- | G19: -- | J19: -- | M19: -- | P19: --
A20: General Plant | D20: -- | G20: -- | J20: -- | M20: -- | P20: --
A21: TOTAL EXPENDITURE | B21: =SUM(B17:B20) -> 0 | C21: =SUM(C17:C20) -> 0 | D21: -- | E21: 0 | F21: 0 | G21: -- | H21: 0 | I21: 0 | J21: -- | K21: 0 | L21: 0 | M21: -- | N21: 0 | O21: 0 | P21: -- | Q21: 0 | R21: 0 | S21: 0 | T21: 0 | U21: =SUM(U17:U20) -> 0
A22: System O&M | D22: -- | G22: -- | J22: -- | M22: -- | P22: --
A24: Notes to the Table:
A25: 1. Historical “previous plan” data is not required unless a plan has previously been filed
A26: 2. Indicate the number of months of 'actual' data included in the last year of the Historical Period (normally a 'bridge' year):
A28: Explanatory Notes on Variances (complete only if applicable)
A29: Notes on shifts in forecast vs. historical budgets by category
A32: Notes on year over year Plan vs. Actual variances for Total Expenditures
A35: Notes on Plan vs. Actual variance trends for individual expenditure categories

Sheet App. 2-AC_Customer Engagement
B1: File Number: | C1: =EBNUMBER -> EB-2015-0113
B2: Exhibit:
B3: Tab:
B4: Schedule:
B5: Page:
B7: Date:
A9: Appendix 2-AC
A10: Customer Engagement Activities Summary
A12: Provide a list of customer engagement activities | B12: Provide a list of customer needs and preferences identified through each engagement activity | C12: Actions taken to respond to identified needs and preferences. If no action was taken, explain why.
B13: 1, 2.
B14: 1, 2.
B15: 1, 2.
B16: 1, 2.
B17: 1, 2.
A45: Note: Use "ALT-ENTER" to go to the next line within a cell

Sheet App.2-B_Acct Instructions
A1: General Instructions to MIFRS Appendices
A2: Types of Schedules to File
A4: The purpose of this tab is to provide general instructions. The specific instructions to each appendix are listed in footnotes of each appendix.
A6: The typical applicant is expected to have made capitalization and depreciation policy changes under CGAAP as permitted by the Board on January 1, 2012 or mandated by the Board by January 1, 2013, and adopts IFRS for reporting purposes on January 1, 2015 (transition date January 1, 2014). In general, applicants under the two scenarios should provide the following information in the appendices:
F8: this is our initial thoughts - may change depending on whether any changes between MIFRS and Revised CGAAP
E9: Accounting Policy Changes in 2012 and Adopts IFRS in 2015 | F9: Accounting Policy Changes in 2013 and Adopts IFRS in 2015
E10: (Date of Transition to IFRS 2014)
B11: 2016 | C11: Test | F11: MIFRS
A12: Information to be filed in 2015 CoS Application | B12: 2015 | C12: Bridge | E12: MIFRS | F12: MIFRS and Revised CGAAP* and CGAAP | G12: is there a difference between MIFRS and Revised CGAAP
B13: 2014 | C13: Historical/Fcst | E13: MIFRS and Revised CGAAP* | F13: MIFRS and Revised CGAAP* and CGAAP
B14: 2013 | C14: Historical | E14: Revised CGAAP | F14: CGAAP and Revised CGAAP
B15: 2012 | C15: Historical | E15: CGAAP and Revised CGAAP | F15: CGAAP
B16: 2011 and Prior | C16: Historical | E16: CGAAP | F16: CGAAP
A18: 1) For the year that the applicant implemented changes to its capitalization and depreciation policies (2012 or 2013), the applicant must file two appendices, one before and one after the policy changes.
A21: 2) For the transition year (2014), the applicant may file two appendices, one under Revised CGAAP and one under MIFRS depending, on the materiality of impacts. See the specific instructions under each appendix below for further details.
A26: Appendix 2-BA - Fixed Asset Schedule
A28: Applicants are to provide Appendix 2-BA in accordance with the years and corresponding accounting standards noted in the above table to provide a year over year continuity in fixed assets.
A29: *For the transition year (2014), the applicant should file two appendices, one under Revised CGAAP and one under MIFRS if the change between Revised CGAAP and MIFRS is material. If the change from the accounting standards is not material, the applicant may choose to only provide one appendix under MIFRS. The applicant must also indicate the fixed asset net book value balance under Revised CGAAP, the total dollar value of the change and explain why it is not material.
A33: Regulatory Gross Assets of Property, Plant and Equipment
A35: For an applicant that is adopting IFRS on January 1, 2015 for financial reporting purposes, the applicant must establish the continuity of historic cost by using the December 31, 2013 regulatory gross assets of property, plant and equipment as the opening January 1, 2014 regulatory gross assets. The applicant must provide schedules (including Appendix 2-BA, Fixed Asset Continuity Schedule) which must identify the following details to substantiate the continuity of historic cost for regulatory purposes:
A38: · December 31, 2013 regulatory gross assets of property, plant and equipment, by asset class; and
A39: · January 1, 2014 regulatory gross assets of property, plant and equipment, by asset class.
A41: Accumulated Depreciation
A43: For an applicant that is adopting IFRS on January 1, 2015 for financial reporting purposes, the applicant must establish the continuity of historic cost by using the December 31, 2013 regulatory accumulated depreciation as the opening January 1, 2014 regulatory accumulated depreciation. The applicant must provide schedules (including Appendix 2-BA, Fixed Asset Continuity Schedule) which must identify the following details to substantiate the continuity of historic cost for regulatory purposes:
A46: · December 31, 2013 regulatory accumulated depreciation, by asset class; and
A47: · January 1, 2014 regulatory accumulated depreciation, by asset class.
A49: Appendix 2-C - Depreciation and Amortization
A51: Applicants are to provide Appendix 2-C starting in the year capitalization and depreciation policy changes were implemented in accordance with the years and corresponding accounting standards listed in the above table.
A52: If an applicant changed capitalization and depreciation policies effective January 1, 2012 and will adopt IFRS for reporting purposes effective January 1, 2015, the applicant must complete Appendix 2-CA to 2-CE (inclusive).
A53: If an applicant changed capitalization and depreciation policies effective January 1, 2013 and will adopt IFRS for reporting purposes effective January 1, 2015, the applicant must complete Appendix 2-CF to 2-CI (inclusive).
A54: *Depreciation accounting policy changes were mandated by the Board by January 1, 2013. These accounting changes should be implemented consistent with the Board’s regulatory accounting policies as set out for MIFRS as contained in the Report of the Board, Transition to International Financial Reporting Standards (EB-2008-0408), the Depreciation Study for Use by Electricity Distributors (EB-2010-0178) and the Revised 2012 Accounting Procedures Handbook for Electricity Distributors. In general, no further changes to an applicant's depreciation policy (i.e. assets' service lives) are expected after the Board mandated changes by January 1, 2013. The set of Appendix CA to CI assumes this to be the case. If the applicant has made any changes to its depreciation policy subsequent to the Board mandated changes, applicants must identify the change, explain the nature of the change, the reason for the change, quantify the impact of the change, and quantify the depreciation expense before and after the change.
A57: Appendix 2-E - Account 1575, IFRS-CGAAP Transitional PP&E Amounts (2-EA), Account 1576, Accounting Changes Under CGAAP (2-EB, 2-EC)
A59: If an applicant changed capitalization and depreciation policies effective January 1, 2012 and will adopt IFRS for reporting purposes effective January 1, 2015, the applicant must complete Appendix 2-EA and 2-EB. If the applicant does not make any further PP&E accounting policy changes beyond the capitalization and depreciation policy changes as permitted by the Board on January 1, 2012 (i.e. no further changes made on transition to IFRS), the applicant must indicate this and does not need to complete Appendix 2-EA.
A61: If an applicant changed capitalization and depreciation policies effective January 1, 2013 and will adopt IFRS for reporting purposes effective January 1, 2015, the applicant must complete Appendix 2-EA and 2-EC. If the applicant does not make any further PP&E accounting policy changes beyond the capitalization and depreciation policy changes as mandated by the Board by January 1, 2013 (i.e. no further changes made on transition to IFRS), the applicant must indicate this and does not need to complete Appendix 2-EA.
A63: Please refer to section 2.12.4 and 2.12.5 of the Filing Requirements for further details.
A65: Appendix 2-YA - Summary of Impacts to Revenue Requirement from Transition to MIFRS
A67: For applicants adopting MIFRS, the applicants must provide a summary of the dollar impacts of MIFRS to each component of the revenue requirement (e.g. rate base, operating costs, etc), including the overall impact on the proposed revenue requirement. Accordingly, the applicants must identify financial differences and resulting revenue requirement impacts arising from the adoption of MIFRS as compared to CGAAP prior to capitalization and depreciation policy changes.

Sheet Appendix 2-BB Service Life
M1: File Number: | O1: 0
M2: Exhibit:
M3: Tab:
M4: Schedule:
M5: Page:
M7: Date:
A9: Appendix 2-BB
A10: Service Life Comparison
A11: Table F-1 from Kinetrics Report1
C15: Asset Details | F15: Useful Life | J15: USoA Account Number | K15: USoA Account Description | L15: Current | N15: Proposed | P15: Outside Range of Min, Max TUL?
A16: Parent* | B16: # | C16: Category| Component | Type | F16: MIN UL | G16: TUL | H16: MAX UL | L16: Years | M16: Rate | N16: Years | O16: Rate | P16: Below Min TUL | Q16: Above Max TUL
A17: OH | B17: 1 | C17: Fully Dressed Wood Poles | D17: Overall | F17: 35 | G17: 45 | H17: 75 | M17: =IF(ISERROR(1/L17), "", 1/L17) ->  | O17: =IF(ISERROR(1/N17), "", 1/N17) ->  | P17: =IF(ISBLANK(N17),"",IF(N17<F17,"Yes","No")) ->  | Q17: =IF(ISBLANK(N17),"",IF(N17>H17,"Yes","No")) -> 
D18: Cross Arm | E18: Wood | F18: 20 | G18: 40 | H18: 55 | M18: =IF(ISERROR(1/L18), "", 1/L18) ->  | O18: =IF(ISERROR(1/N18), "", 1/N18) ->  | P18: =IF(ISBLANK(N18),"",IF(N18<F18,"Yes","No")) ->  | Q18: =IF(ISBLANK(N18),"",IF(N18>H18,"Yes","No")) -> 
E19: Steel | F19: 30 | G19: 70 | H19: 95
B20: 2 | C20: Fully Dressed Concrete Poles | D20: Overall | F20: 50 | G20: 60 | H20: 80
D21: Cross Arm | E21: Wood | F21: 20 | G21: 40 | H21: 55
E22: Steel | F22: 30 | G22: 70 | H22: 95
B23: 3 | C23: Fully Dressed Steel Poles | D23: Overall | F23: 60 | G23: 60 | H23: 80
D24: Cross Arm | E24: Wood | F24: 20 | G24: 40 | H24: 55
E25: Steel | F25: 30 | G25: 70 | H25: 95
B26: 4 | C26: OH Line Switch | F26: 30 | G26: 45 | H26: 55
B27: 5 | C27: OH Line Switch Motor | F27: 15 | G27: 25 | H27: 25
B28: 6 | C28: OH Line Switch RTU | F28: 15 | G28: 20 | H28: 20
B29: 7 | C29: OH Integral Switches | F29: 35 | G29: 45 | H29: 60
B30: 8 | C30: OH Conductors | F30: 50 | G30: 60 | H30: 75
B31: 9 | C31: OH Transformers & Voltage Regulators | F31: 30 | G31: 40 | H31: 60
B32: 10 | C32: OH Shunt Capacitor Banks | F32: 25 | G32: 30 | H32: 40
B33: 11 | C33: Reclosers | F33: 25 | G33: 40 | H33: 55
A34: TS & MS | B34: 12 | C34: Power Transformers | D34: Overall | F34: 30 | G34: 45 | H34: 60
D35: Bushing | F35: 10 | G35: 20 | H35: 30
D36: Tap Changer | F36: 20 | G36: 30 | H36: 60
B37: 13 | C37: Station Service Transformer | F37: 30 | G37: 45 | H37: 55
B38: 14 | C38: Station Grounding Transformer | F38: 30 | G38: 40 | H38: 40
B39: 15 | C39: Station DC System | D39: Overall | F39: 10 | G39: 20 | H39: 30
D40: Battery Bank | F40: 10 | G40: 15 | H40: 15
D41: Charger | F41: 20 | G41: 20 | H41: 30
B42: 16 | C42: Station Metal Clad Switchgear | D42: Overall | F42: 30 | G42: 40 | H42: 60
D43: Removable Breaker | F43: 25 | G43: 40 | H43: 60
B44: 17 | C44: Station Independent Breakers | F44: 35 | G44: 45 | H44: 65
B45: 18 | C45: Station Switch | F45: 30 | G45: 50 | H45: 60
B46: 19 | C46: Electromechanical Relays | F46: 25 | G46: 35 | H46: 50
B47: 20 | C47: Solid State Relays | F47: 10 | G47: 30 | H47: 45
B48: 21 | C48: Digital & Numeric Relays | F48: 15 | G48: 20 | H48: 20
B49: 22 | C49: Rigid Busbars | F49: 30 | G49: 55 | H49: 60
B50: 23 | C50: Steel Structure | F50: 35 | G50: 50 | H50: 90
A51: UG | B51: 24 | C51: Primary Paper Insulated Lead Covered (PILC) Cables | F51: 60 | G51: 65 | H51: 75
B52: 25 | C52: Primary Ethylene-Propylene Rubber (EPR) Cables | F52: 20 | G52: 25 | H52: 25
B53: 26 | C53: Primary Non-Tree Retardant (TR) Cross Linked Polyethylene (XLPE) Cables Direct Buried | F53: 20 | G53: 25 | H53: 30
B54: 27 | C54: Primary Non-TR XLPE Cables in Duct | F54: 20 | G54: 25 | H54: 30
B55: 30 | C55: Secondary PILC Cables | F55: 70 | G55: 75 | H55: 80
B56: 31 | C56: Secondary Cables Direct Buried | F56: 25 | G56: 35 | H56: 40
B57: 32 | C57: Secondary Cables in Duct | F57: 35 | G57: 40 | H57: 60
B58: 33 | C58: Network Tranformers | D58: Overall | F58: 20 | G58: 35 | H58: 50
D59: Protector | F59: 20 | G59: 35 | H59: 40
B60: 34 | C60: Pad-Mounted Transformers | F60: 25 | G60: 40 | H60: 45
B61: 35 | C61: Submersible/Vault Transformers | F61: 25 | G61: 35 | H61: 45
B62: 36 | C62: UG Foundation | F62: 35 | G62: 55 | H62: 70
B63: 37 | C63: UG Vaults | D63: Overall | F63: 40 | G63: 60 | H63: 80
D64: Roof | F64: 20 | G64: 30 | H64: 45
B65: 38 | C65: UG Vault Switches | F65: 20 | G65: 35 | H65: 50
B66: 39 | C66: Pad-Mounted Switchgear | F66: 20 | G66: 30 | H66: 45
B67: 40 | C67: Ducts | F67: 30 | G67: 50 | H67: 85
B68: 41 | C68: Concrete Encased Duct Banks | F68: 35 | G68: 55 | H68: 80
B69: 42 | C69: Cable Chambers | F69: 50 | G69: 60 | H69: 80
A70: S | B70: 43 | C70: Remote SCADA | F70: 15 | G70: 20 | H70: 30
A73: Table F-2 from Kinetrics Report1
C75: Asset Details | F75: Useful Life Range | J75: USoA Account Number | K75: USoA Account Description | L75: Current | N75: Proposed | P75: Outside Range of Min, Max TUL?
B76: # | C76: Category| Component | Type | L76: Years | M76: Rate | N76: Years | O76: Rate | P76: Below Min Range | Q76: Above Max Range
B77: 1 | C77: Office Equipment | F77: 5 | G77: 15 | M77: =IF(ISERROR(1/L77), "", 1/L77) ->  | O77: =IF(ISERROR(1/N77), "", 1/N77) ->  | P77: =IF(ISBLANK(N77),"",IF(N77<F77,"Yes","No")) ->  | Q77: =IF(ISBLANK(N77),"",IF(N77>G77,"Yes","No")) -> 
B78: 2 | C78: Vehicles | D78: Trucks & Buckets | F78: 5 | G78: 15 | M78: =IF(ISERROR(1/L78), "", 1/L78) ->  | O78: =IF(ISERROR(1/N78), "", 1/N78) ->  | P78: =IF(ISBLANK(N78),"",IF(N78<F78,"Yes","No")) ->  | Q78: =IF(ISBLANK(N78),"",IF(N78>G78,"Yes","No")) -> 
D79: Trailers | F79: 5 | G79: 20
D80: Vans | F80: 5 | G80: 10
B81: 3 | C81: Administrative Buildings | F81: 50 | G81: 75
B82: 4 | C82: Leasehold Improvements | F82: Lease dependent
B83: 5 | C83: Station Buildings | D83: Station Buildings | F83: 50 | G83: 75
D84: Parking | F84: 25 | G84: 30
D85: Fence | F85: 25 | G85: 60
D86: Roof | F86: 20 | G86: 30
B87: 6 | C87: Computer Equipment | D87: Hardware | F87: 3 | G87: 5
D88: Software | F88: 2 | G88: 5
B89: 7 | C89: Equipment | D89: Power Operated | F89: 5 | G89: 10
D90: Stores | F90: 5 | G90: 10
D91: Tools, Shop, Garage Equipment | F91: 5 | G91: 10
D92: Measurement & Testing Equipment | F92: 5 | G92: 10
B93: 8 | C93: Communication | D93: Towers | F93: 60 | G93: 70
D94: Wireless | F94: 2 | G94: 10
B95: 9 | C95: Residential Energy Meters | F95: 25 | G95: 35
B96: 10 | C96: Industrial/Commercial Energy Meters | F96: 25 | G96: 35
B97: 11 | C97: Wholesale Energy Meters | F97: 15 | G97: 30
B98: 12 | C98: Current & Potential Transformer (CT & PT) | F98: 35 | G98: 50
B99: 13 | C99: Smart Meters | F99: 5 | G99: 15
B100: 14 | C100: Repeaters - Smart Metering | F100: 10 | G100: 15
B101: 15 | C101: Data Collectors - Smart Metering | F101: 15 | G101: 20
A104: * TS & MS = Transformer and Municipal Stations UG = Underground Systems S = Monitoring and Control Systems
A106: Note 1: | B106: Tables F-1 and F-2 above are to be used as a reference in order to complete columns J, K, L and N.
B107: See pages 17-19 of Kinetrics Report

Sheet App.2-CA_OldCGAAP_DepExp_2012
A1: DOES NOT APPLY TO WHITBY HYDRO | K1: File Number: | L1: =EBNUMBER -> EB-2015-0113
K2: Exhibit:
K3: Tab:
K4: Schedule:
K5: Page:
K7: Date:
A9: Appendix 2-CA
A10: Depreciation and Amortization Expense
B11: Assumes the applicant made capitalization and depreciation expense accounting policy changes under CGAAP effective January 1, 2012 and will adopt IFRS for financial reporting purposes effective January 1, 2015.
C13: Year | D13: 2012 | E13: Former CGAAP
A15: Account | B15: Description | C15: Opening Regulatory Gross PP&E as at Jan 1, 2012 | D15: Less Fully Depreciated | E15: Net for Depreciation | F15: Additions | G15: Total for Depreciation | H15: Years | I15: Depreciation Rate | J15: Depreciation Expense | K15: 2012 Depreciation Expense per Appendix 2-BA Fixed Assets, Column J (l) | L15: Variance 2
C16: (a) | D16: (b) | E16: (c) | F16: (d) | G16: (e) = (c) + ½ x (d) 1 | H16: (f) | I16: (g) = 1 / (f) | J16: (h) = (e) / (f) | L16: (m) = (h) - (l)
A17: 1611 | B17: Computer Software (Formally known as Account 1925) | E17: =C17-D17 -> 0 | G17: =E17+0.5*F17 -> 0 | I17: =IF(H17=0,0,1/H17) -> 0 | J17: =IF(H17=0,0,G17/H17) -> 0 | L17: =IF(ISERROR(+J17-K17), 0, +J17-K17) -> 0
A18: 1612 | B18: Land Rights (Formally known as Account 1906) | E18: =C18-D18 -> 0 | G18: =E18+0.5*F18 -> 0 | I18: 0 | J18: 0 | L18: 0
A19: 1805 | B19: Land | E19: 0 | G19: 0 | I19: 0 | J19: 0 | L19: 0
A20: 1808 | B20: Buildings | E20: 0 | G20: 0 | I20: 0 | J20: 0 | L20: 0
A21: 1810 | B21: Leasehold Improvements | E21: 0 | G21: 0 | I21: 0 | J21: 0 | L21: 0
A22: 1815 | B22: Transformer Station Equipment >50 kV | E22: 0 | G22: 0 | I22: 0 | J22: 0 | L22: 0
A23: 1820 | B23: Distribution Station Equipment <50 kV | E23: 0 | G23: 0 | I23: 0 | J23: 0 | L23: 0
A24: 1825 | B24: Storage Battery Equipment | E24: 0 | G24: 0 | I24: 0 | J24: 0 | L24: 0
A25: 1830 | B25: Poles, Towers & Fixtures | E25: 0 | G25: 0 | I25: 0 | J25: 0 | L25: 0
A26: 1835 | B26: Overhead Conductors & Devices | E26: 0 | G26: 0 | I26: 0 | J26: 0 | L26: 0
A27: 1840 | B27: Underground Conduit | E27: 0 | G27: 0 | I27: 0 | J27: 0 | L27: 0
A28: 1845 | B28: Underground Conductors & Devices | E28: 0 | G28: 0 | I28: 0 | J28: 0 | L28: 0
A29: 1850 | B29: Line Transformers | E29: 0 | G29: 0 | I29: 0 | J29: 0 | L29: 0
A30: 1855 | B30: Services (Overhead & Underground) | E30: 0 | G30: 0 | I30: 0 | J30: 0 | L30: 0
A31: 1860 | B31: Meters | E31: 0 | G31: 0 | I31: 0 | J31: 0 | L31: 0
A32: 1860 | B32: Meters (Smart Meters) | E32: 0 | G32: 0 | I32: 0 | J32: 0 | L32: 0
A33: 1905 | B33: Land | E33: 0 | G33: 0 | I33: 0 | J33: 0 | L33: 0
A34: 1908 | B34: Buildings & Fixtures | E34: 0 | G34: 0 | I34: 0 | J34: 0 | L34: 0
A35: 1910 | B35: Leasehold Improvements | E35: 0 | G35: 0 | I35: 0 | J35: 0 | L35: 0
A36: 1915 | B36: Office Furniture & Equipment (10 years) | E36: 0 | G36: 0 | I36: 0 | J36: 0 | L36: 0
A37: 1915 | B37: Office Furniture & Equipment (5 years) | E37: 0 | G37: 0 | I37: 0 | J37: 0 | L37: 0
A38: 1920 | B38: Computer Equipment - Hardware | E38: 0 | G38: 0 | I38: 0 | J38: 0 | L38: 0
A39: 1920 | B39: Computer Equip.-Hardware(Post Mar. 22/04) | E39: 0 | G39: 0 | I39: 0 | J39: 0 | L39: 0
A40: 1920 | B40: Computer Equip.-Hardware(Post Mar. 19/07) | E40: 0 | G40: 0 | I40: 0 | J40: 0 | L40: 0
A41: 1930 | B41: Transportation Equipment | E41: 0 | G41: 0 | I41: 0 | J41: 0 | L41: 0
A42: 1935 | B42: Stores Equipment | E42: 0 | G42: 0 | I42: 0 | J42: 0 | L42: 0
A43: 1940 | B43: Tools, Shop & Garage Equipment | E43: 0 | G43: 0 | I43: 0 | J43: 0 | L43: 0
A44: 1945 | B44: Measurement & Testing Equipment | E44: 0 | G44: 0 | I44: 0 | J44: 0 | L44: 0
A45: 1950 | B45: Power Operated Equipment | E45: 0 | G45: 0 | I45: 0 | J45: 0 | L45: 0
A46: 1955 | B46: Communications Equipment | E46: 0 | G46: 0 | I46: 0 | J46: 0 | L46: 0
A47: 1955 | B47: Communication Equipment (Smart Meters) | E47: 0 | G47: 0 | I47: 0 | J47: 0 | L47: 0
A48: 1960 | B48: Miscellaneous Equipment | E48: 0 | G48: 0 | I48: 0 | J48: 0 | L48: 0
A49: 1970 | B49: Load Management Controls Customer Premises | E49: 0 | G49: 0 | I49: 0 | J49: 0 | L49: 0
A50: 1975 | B50: Load Management Controls Utility Premises | E50: 0 | G50: 0 | I50: 0 | J50: 0 | L50: 0
A51: 1980 | B51: System Supervisor Equipment | E51: 0 | G51: 0 | I51: 0 | J51: 0 | L51: 0
A52: 1985 | B52: Miscellaneous Fixed Assets | E52: 0 | G52: 0 | I52: 0 | J52: 0 | L52: 0
A53: 1990 | B53: Other Tangible Property | E53: 0 | G53: 0 | I53: 0 | J53: 0 | L53: 0
A54: 1995 | B54: Contributions & Grants | E54: 0 | G54: 0 | I54: 0 | J54: 0 | L54: 0
B55: Total | C55: =SUM(C17:C54) -> 0 | D55: =SUM(D17:D54) -> 0 | E55: =SUM(E17:E54) -> 0 | F55: =SUM(F17:F54) -> 0 | G55: =SUM(G17:G54) -> 0 | J55: =SUM(J17:J54) -> 0 | K55: =SUM(K17:K54) -> 0 | L55: =SUM(L17:L54) -> 0
A57: Notes:
A59: 1 | B59: Board policy of the "half-year" rule - the applicant must ensure that additions in the year attract a half-year depreciation expense in the first year. Deviations from this standard practice must be supported in the application.
A60: 2 | B60: The applicant must provide an explanation of material variances in evidence.
A62: General | B62: Applicants must provide a breakdown of depreciation and amortization expense in the above format for all relevant accounts. Asset Retirement Obligations (AROs), depreciation and accretion expense should be disclosed separately consistent with the Notes of historical Audited Financial Statements.

Sheet App.2-CB_NewCGAAP_DepExp_2012
A1: DOES NOT APPLY TO WHITBY HYDRO | N1: File Number: | O1: =EBNUMBER -> EB-2015-0113
N2: Exhibit:
N3: Tab:
N4: Schedule:
N5: Page:
N7: Date:
A9: Appendix 2-CB
A10: Depreciation and Amortization Expense
A11: Assumes the applicant made capitalization and depreciation expense accounting policy changes under CGAAP effective January 1, 2012 and will adopt IFRS for financial reporting purposes effective January 1, 2015.
C13: Year | D13: 2012 | E13: Revised CGAAP
A15: Account | B15: Description | C15: Opening NBV as at Jan 1, 2012 5 | D15: Additions | E15: Average Remaining Life of Opening NBV 4 | F15: Years (new additions only) 3 | G15: Depreciation Rate on New Additions | H15: Depreciation Expense on Opening NBV | I15: Depreciation Expense on Additions 1 | J15: 2012 Depreciation Expense | K15: 2012 Depreciation Expense per Appendix 2-BA Fixed Assets, Column J (l) | L15: Variance 2 | M15: Depreciation Expense on 2012 Full Year Additions | N15: Less Depreciation Expense on Assets Fully Depreciated during the year (o) | O15: 2012 Full Year Depreciation 6
C16: (a) | D16: (d) | E16: (i) | F16: (f) | G16: (g) = 1 / (f) | H16: (j) = (a) / (i) | I16: (h)=((d)*0.5)/(f) | J16: (k) = (j) + (h) | L16: (m) = (k) - (l) | M16: (n) = (d)/(f) | O16: (p) = (j) + (n) - (o)
A17: 1611 | B17: Computer Software (Formally known as Account 1925) | G17: =IF(F17=0,0,1/F17) -> 0 | H17: =IF(E17=0,0,+C17/E17) -> 0 | I17: =IF(F17=0,0,+(D17*0.5)/F17) -> 0 | J17: =IF(ISERROR(+H17+I17), 0, +H17+I17) -> 0 | L17: =IF(ISERROR(+J17-K17), 0, +J17-K17) -> 0 | M17: =IF(F17=0,0,+(D17)/F17) -> 0 | O17: =IF(ISERROR(+M17+H17-N17), 0, +M17+H17-N17) -> 0
A18: 1612 | B18: Land Rights (Formally known as Account 1906) | G18: 0 | H18: 0 | I18: 0 | J18: 0 | L18: 0 | M18: 0 | O18: =IF(ISERROR(+M18+H18-N18), 0, +M18+H18-N18) -> 0
A19: 1805 | B19: Land | G19: 0 | H19: 0 | I19: 0 | J19: 0 | L19: 0 | M19: 0 | O19: 0
A20: 1808 | B20: Buildings | G20: 0 | H20: 0 | I20: 0 | J20: 0 | L20: 0 | M20: 0 | O20: 0
A21: 1810 | B21: Leasehold Improvements | G21: 0 | H21: 0 | I21: 0 | J21: 0 | L21: 0 | M21: 0 | O21: 0
A22: 1815 | B22: Transformer Station Equipment >50 kV | G22: 0 | H22: 0 | I22: 0 | J22: 0 | L22: 0 | M22: 0 | O22: 0
A23: 1820 | B23: Distribution Station Equipment <50 kV | G23: 0 | H23: 0 | I23: 0 | J23: 0 | L23: 0 | M23: 0 | O23: 0
A24: 1825 | B24: Storage Battery Equipment | G24: 0 | H24: 0 | I24: 0 | J24: 0 | L24: 0 | M24: 0 | O24: 0
A25: 1830 | B25: Poles, Towers & Fixtures | G25: 0 | H25: 0 | I25: 0 | J25: 0 | L25: 0 | M25: 0 | O25: 0
A26: 1835 | B26: Overhead Conductors & Devices | G26: 0 | H26: 0 | I26: 0 | J26: 0 | L26: 0 | M26: 0 | O26: 0
A27: 1840 | B27: Underground Conduit | G27: 0 | H27: 0 | I27: 0 | J27: 0 | L27: 0 | M27: 0 | O27: 0
A28: 1845 | B28: Underground Conductors & Devices | G28: 0 | H28: 0 | I28: 0 | J28: 0 | L28: 0 | M28: 0 | O28: 0
A29: 1850 | B29: Line Transformers | G29: 0 | H29: 0 | I29: 0 | J29: 0 | L29: 0 | M29: 0 | O29: 0
A30: 1855 | B30: Services (Overhead & Underground) | G30: 0 | H30: 0 | I30: 0 | J30: 0 | L30: 0 | M30: 0 | O30: 0
A31: 1860 | B31: Meters | G31: 0 | H31: 0 | I31: 0 | J31: 0 | L31: 0 | M31: 0 | O31: 0
A32: 1860 | B32: Meters (Smart Meters) | G32: 0 | H32: 0 | I32: 0 | J32: 0 | L32: 0 | M32: 0 | O32: 0
A33: 1905 | B33: Land | G33: 0 | H33: 0 | I33: 0 | J33: 0 | L33: 0 | M33: 0 | O33: 0
A34: 1908 | B34: Buildings & Fixtures | G34: 0 | H34: 0 | I34: 0 | J34: 0 | L34: 0 | M34: 0 | O34: 0
A35: 1910 | B35: Leasehold Improvements | G35: 0 | H35: 0 | I35: 0 | J35: 0 | L35: 0 | M35: 0 | O35: 0
A36: 1915 | B36: Office Furniture & Equipment (10 years) | G36: 0 | H36: 0 | I36: 0 | J36: 0 | L36: 0 | M36: 0 | O36: 0
A37: 1915 | B37: Office Furniture & Equipment (5 years) | G37: 0 | H37: 0 | I37: 0 | J37: 0 | L37: 0 | M37: 0 | O37: 0
A38: 1920 | B38: Computer Equipment - Hardware | G38: 0 | H38: 0 | I38: 0 | J38: 0 | L38: 0 | M38: 0 | O38: 0
A39: 1920 | B39: Computer Equip.-Hardware(Post Mar. 22/04) | G39: 0 | H39: 0 | I39: 0 | J39: 0 | L39: 0 | M39: 0 | O39: 0
A40: 1920 | B40: Computer Equip.-Hardware(Post Mar. 19/07) | G40: 0 | H40: 0 | I40: 0 | J40: 0 | L40: 0 | M40: 0 | O40: 0
A41: 1930 | B41: Transportation Equipment | G41: 0 | H41: 0 | I41: 0 | J41: 0 | L41: 0 | M41: 0 | O41: 0
A42: 1935 | B42: Stores Equipment | G42: 0 | H42: 0 | I42: 0 | J42: 0 | L42: 0 | M42: 0 | O42: 0
A43: 1940 | B43: Tools, Shop & Garage Equipment | G43: 0 | H43: 0 | I43: 0 | J43: 0 | L43: 0 | M43: 0 | O43: 0
A44: 1945 | B44: Measurement & Testing Equipment | G44: 0 | H44: 0 | I44: 0 | J44: 0 | L44: 0 | M44: 0 | O44: 0
A45: 1950 | B45: Power Operated Equipment | G45: 0 | H45: 0 | I45: 0 | J45: 0 | L45: 0 | M45: 0 | O45: 0
A46: 1955 | B46: Communications Equipment | G46: 0 | H46: 0 | I46: 0 | J46: 0 | L46: 0 | M46: 0 | O46: 0
A47: 1955 | B47: Communication Equipment (Smart Meters) | G47: 0 | H47: 0 | I47: 0 | J47: 0 | L47: 0 | M47: 0 | O47: 0
A48: 1960 | B48: Miscellaneous Equipment | G48: 0 | H48: 0 | I48: 0 | J48: 0 | L48: 0 | M48: 0 | O48: 0
A49: 1970 | B49: Load Management Controls Customer Premises | G49: 0 | H49: 0 | I49: 0 | J49: 0 | L49: 0 | M49: 0 | O49: 0
A50: 1975 | B50: Load Management Controls Utility Premises | G50: 0 | H50: 0 | I50: 0 | J50: 0 | L50: 0 | M50: 0 | O50: 0
A51: 1980 | B51: System Supervisor Equipment | G51: 0 | H51: 0 | I51: 0 | J51: 0 | L51: 0 | M51: 0 | O51: 0
A52: 1985 | B52: Miscellaneous Fixed Assets | G52: 0 | H52: 0 | I52: 0 | J52: 0 | L52: 0 | M52: 0 | O52: 0
A53: 1990 | B53: Other Tangible Property | G53: 0 | H53: 0 | I53: 0 | J53: 0 | L53: 0 | M53: 0 | O53: 0
A54: 1995 | B54: Contributions & Grants | G54: 0 | H54: 0 | I54: 0 | J54: 0 | L54: 0 | M54: 0 | O54: 0
B55: Total | C55: =SUM(C17:C54) -> 0 | D55: =SUM(D17:D54) -> 0 | H55: =SUM(H17:H54) -> 0 | I55: 0 | J55: 0 | K55: 0 | L55: 0 | M55: 0 | N55: 0 | O55: 0
A57: Notes:
A59: 1 | B59: Board policy of the "half-year" rule - the applicant must ensure that additions in the year attract a half-year depreciation expense in the first year. Deviations from this standard practice must be supported in the application.
A60: 2 | B60: The applicant must provide an explanation of material variances in evidence.
A61: 3 | B61: The applicant should ensure that the years for new additions of assets are the asset useful lives determined by management in accordance with the Board's regulatory accounting policies. The capitalization and depreciation expense accounting changes should be implemented consistent with the Board’s regulatory accounting policies as set out for modified IFRS as contained in the Report of the Board, Transition to International Financial Reporting Standards, EB-2008-0408, the Kinectrics Report, and the Revised 2012 Accounting Procedures Handbook for Electricity Distributors (“APH”).
A62: 4 | B62: A recalculation should be performed to determine the average remaining life of opening balance of assets (i.e. excluding 2012 additions) under the change in policies under CGAAP. For example, Asset A had a useful life of 20 years under CGAAP without the change in policies. On January 1, 2012, the effective date of the changes in policies, Asset A was 3 years depreciated. As a result, Asset A would have a remaining service life of 17 years (20 years less 3 years) as of January 1, 2012. Due to making the change in policies under CGAAP, management re-assessed the asset useful lives and concluded that the revised useful life of Asset A is now 30 years. Therefore, the average remaining useful life of the opening balance of Asset A is determined to be 27 years (30 years less 3 years) under the revised CGAAP as of January 1, 2012.
A63: 5 | B63: NBV must exclude assets still on the books but which have been fully amortized or depreciated.
A64: 6 | B64: This column refers to the calculated full year depreciation but excludes the depreciation expense on assets fully depreciated during the year. This column is used for the purpose of calculating depreciation expense in the following year on the next worksheet.
A66: General: | B66: Applicants must provide a breakdown of depreciation and amortization expense in the above format for all relevant accounts. Asset Retirement Obligations (AROs), depreciation and accretion expense should be disclosed separately consistent with the Notes of historical Audited Financial Statements.

Sheet App.2-CC_NewCGAAP_DepExp_2013
A1: DOES NOT APPLY TO WHITBY HYDRO | J1: File Number: | K1: =EBNUMBER -> EB-2015-0113
J2: Exhibit:
J3: Tab:
J4: Schedule:
J5: Page:
J7: Date:
A9: Appendix 2-CC
A10: Depreciation and Amortization Expense
A11: Assumes the applicant made capitalization and depreciation expense accounting policy changes under CGAAP effective January 1, 2012 and will adopt IFRS for financial reporting purposes effective January 1, 2015.
C13: 2013 | D13: Revised CGAAP
A15: Account | B15: Description | C15: Additions | D15: Years (new additions only) | E15: Depreciation Rate on New Additions | F15: 2013 Depreciation Expense 1 | G15: 2013 Depreciation Expense per Apppendix 2-BA Fixed Assets, Column J (l) | H15: Variance 2 | I15: Depreciation Expense on 2013 Full Year Additions | J15: Less Depreciation Expense on Assets Fully Depreciated during the year (o) | K15: 2013 Full Year Depreciation 3
C16: (d) | D16: (f) | E16: (g) = 1 / (f) | F16: (h)=2012 Full Year Deprecation + ((d)*0.5)/(f) | H16: (m) = (h) - (l) | I16: (n)=((d))/(f) | K16: (p) = 2012 Full Year Depreciation + (n) - (o)
A17: 1611 | B17: Computer Software (Formally known as Account 1925) | E17: =IF(D17=0,0,1/D17) -> 0 | F17: =IF(D17=0,+'App.2-CB_NewCGAAP_DepExp_2012'!O17,+'App.2-CB_NewCGAAP_DepExp_2012'!O17+((C17*0.5)/D17)) -> 0 | H17: =IF(ISERROR(+F17-G17), 0, +F17-G17) -> 0 | I17: =IF(D17=0,0,+(C17)/D17) -> 0 | K17: =IF(ISERROR(+I17+'App.2-CB_NewCGAAP_DepExp_2012'!O17-J17), 0, +I17+'App.2-CB_NewCGAAP_DepExp_2012'!O17-J17) -> 0
A18: 1612 | B18: Land Rights (Formally known as Account 1906) | E18: 0 | F18: =IF(D18=0,+'App.2-CB_NewCGAAP_DepExp_2012'!O18,+'App.2-CB_NewCGAAP_DepExp_2012'!O18+((C18*0.5)/D18)) -> 0 | H18: 0 | I18: 0 | K18: =IF(ISERROR(+I18+'App.2-CB_NewCGAAP_DepExp_2012'!O18-J18), 0, +I18+'App.2-CB_NewCGAAP_DepExp_2012'!O18-J18) -> 0
A19: 1805 | B19: Land | E19: 0 | F19: =IF(D19=0,+'App.2-CB_NewCGAAP_DepExp_2012'!O19,+'App.2-CB_NewCGAAP_DepExp_2012'!O19+((C19*0.5)/D19)) -> 0 | H19: 0 | I19: 0 | K19: =IF(ISERROR(+I19+'App.2-CB_NewCGAAP_DepExp_2012'!O19-J19), 0, +I19+'App.2-CB_NewCGAAP_DepExp_2012'!O19-J19) -> 0
A20: 1808 | B20: Buildings | E20: 0 | F20: =IF(D20=0,+'App.2-CB_NewCGAAP_DepExp_2012'!O20,+'App.2-CB_NewCGAAP_DepExp_2012'!O20+((C20*0.5)/D20)) -> 0 | H20: 0 | I20: 0 | K20: =IF(ISERROR(+I20+'App.2-CB_NewCGAAP_DepExp_2012'!O20-J20), 0, +I20+'App.2-CB_NewCGAAP_DepExp_2012'!O20-J20) -> 0
A21: 1810 | B21: Leasehold Improvements | E21: 0 | F21: =IF(D21=0,+'App.2-CB_NewCGAAP_DepExp_2012'!O21,+'App.2-CB_NewCGAAP_DepExp_2012'!O21+((C21*0.5)/D21)) -> 0 | H21: 0 | I21: 0 | K21: =IF(ISERROR(+I21+'App.2-CB_NewCGAAP_DepExp_2012'!O21-J21), 0, +I21+'App.2-CB_NewCGAAP_DepExp_2012'!O21-J21) -> 0
A22: 1815 | B22: Transformer Station Equipment >50 kV | E22: 0 | F22: =IF(D22=0,+'App.2-CB_NewCGAAP_DepExp_2012'!O22,+'App.2-CB_NewCGAAP_DepExp_2012'!O22+((C22*0.5)/D22)) -> 0 | H22: 0 | I22: 0 | K22: =IF(ISERROR(+I22+'App.2-CB_NewCGAAP_DepExp_2012'!O22-J22), 0, +I22+'App.2-CB_NewCGAAP_DepExp_2012'!O22-J22) -> 0
A23: 1820 | B23: Distribution Station Equipment <50 kV | E23: 0 | F23: =IF(D23=0,+'App.2-CB_NewCGAAP_DepExp_2012'!O23,+'App.2-CB_NewCGAAP_DepExp_2012'!O23+((C23*0.5)/D23)) -> 0 | H23: 0 | I23: 0 | K23: =IF(ISERROR(+I23+'App.2-CB_NewCGAAP_DepExp_2012'!O23-J23), 0, +I23+'App.2-CB_NewCGAAP_DepExp_2012'!O23-J23) -> 0
A24: 1825 | B24: Storage Battery Equipment | E24: 0 | F24: =IF(D24=0,+'App.2-CB_NewCGAAP_DepExp_2012'!O24,+'App.2-CB_NewCGAAP_DepExp_2012'!O24+((C24*0.5)/D24)) -> 0 | H24: 0 | I24: 0 | K24: =IF(ISERROR(+I24+'App.2-CB_NewCGAAP_DepExp_2012'!O24-J24), 0, +I24+'App.2-CB_NewCGAAP_DepExp_2012'!O24-J24) -> 0
A25: 1830 | B25: Poles, Towers & Fixtures | E25: 0 | F25: =IF(D25=0,+'App.2-CB_NewCGAAP_DepExp_2012'!O25,+'App.2-CB_NewCGAAP_DepExp_2012'!O25+((C25*0.5)/D25)) -> 0 | H25: 0 | I25: 0 | K25: =IF(ISERROR(+I25+'App.2-CB_NewCGAAP_DepExp_2012'!O25-J25), 0, +I25+'App.2-CB_NewCGAAP_DepExp_2012'!O25-J25) -> 0
A26: 1835 | B26: Overhead Conductors & Devices | E26: 0 | F26: =IF(D26=0,+'App.2-CB_NewCGAAP_DepExp_2012'!O26,+'App.2-CB_NewCGAAP_DepExp_2012'!O26+((C26*0.5)/D26)) -> 0 | H26: 0 | I26: 0 | K26: =IF(ISERROR(+I26+'App.2-CB_NewCGAAP_DepExp_2012'!O26-J26), 0, +I26+'App.2-CB_NewCGAAP_DepExp_2012'!O26-J26) -> 0
A27: 1840 | B27: Underground Conduit | E27: 0 | F27: =IF(D27=0,+'App.2-CB_NewCGAAP_DepExp_2012'!O27,+'App.2-CB_NewCGAAP_DepExp_2012'!O27+((C27*0.5)/D27)) -> 0 | H27: 0 | I27: 0 | K27: =IF(ISERROR(+I27+'App.2-CB_NewCGAAP_DepExp_2012'!O27-J27), 0, +I27+'App.2-CB_NewCGAAP_DepExp_2012'!O27-J27) -> 0
A28: 1845 | B28: Underground Conductors & Devices | E28: 0 | F28: =IF(D28=0,+'App.2-CB_NewCGAAP_DepExp_2012'!O28,+'App.2-CB_NewCGAAP_DepExp_2012'!O28+((C28*0.5)/D28)) -> 0 | H28: 0 | I28: 0 | K28: =IF(ISERROR(+I28+'App.2-CB_NewCGAAP_DepExp_2012'!O28-J28), 0, +I28+'App.2-CB_NewCGAAP_DepExp_2012'!O28-J28) -> 0
A29: 1850 | B29: Line Transformers | E29: 0 | F29: =IF(D29=0,+'App.2-CB_NewCGAAP_DepExp_2012'!O29,+'App.2-CB_NewCGAAP_DepExp_2012'!O29+((C29*0.5)/D29)) -> 0 | H29: 0 | I29: 0 | K29: =IF(ISERROR(+I29+'App.2-CB_NewCGAAP_DepExp_2012'!O29-J29), 0, +I29+'App.2-CB_NewCGAAP_DepExp_2012'!O29-J29) -> 0
A30: 1855 | B30: Services (Overhead & Underground) | E30: 0 | F30: =IF(D30=0,+'App.2-CB_NewCGAAP_DepExp_2012'!O30,+'App.2-CB_NewCGAAP_DepExp_2012'!O30+((C30*0.5)/D30)) -> 0 | H30: 0 | I30: 0 | K30: =IF(ISERROR(+I30+'App.2-CB_NewCGAAP_DepExp_2012'!O30-J30), 0, +I30+'App.2-CB_NewCGAAP_DepExp_2012'!O30-J30) -> 0
A31: 1860 | B31: Meters | E31: 0 | F31: =IF(D31=0,+'App.2-CB_NewCGAAP_DepExp_2012'!O31,+'App.2-CB_NewCGAAP_DepExp_2012'!O31+((C31*0.5)/D31)) -> 0 | H31: 0 | I31: 0 | K31: =IF(ISERROR(+I31+'App.2-CB_NewCGAAP_DepExp_2012'!O31-J31), 0, +I31+'App.2-CB_NewCGAAP_DepExp_2012'!O31-J31) -> 0
A32: 1860 | B32: Meters (Smart Meters) | E32: 0 | F32: =IF(D32=0,+'App.2-CB_NewCGAAP_DepExp_2012'!O32,+'App.2-CB_NewCGAAP_DepExp_2012'!O32+((C32*0.5)/D32)) -> 0 | H32: 0 | I32: 0 | K32: =IF(ISERROR(+I32+'App.2-CB_NewCGAAP_DepExp_2012'!O32-J32), 0, +I32+'App.2-CB_NewCGAAP_DepExp_2012'!O32-J32) -> 0
A33: 1905 | B33: Land | E33: 0 | F33: =IF(D33=0,+'App.2-CB_NewCGAAP_DepExp_2012'!O33,+'App.2-CB_NewCGAAP_DepExp_2012'!O33+((C33*0.5)/D33)) -> 0 | H33: 0 | I33: 0 | K33: =IF(ISERROR(+I33+'App.2-CB_NewCGAAP_DepExp_2012'!O33-J33), 0, +I33+'App.2-CB_NewCGAAP_DepExp_2012'!O33-J33) -> 0
A34: 1908 | B34: Buildings & Fixtures | E34: 0 | F34: =IF(D34=0,+'App.2-CB_NewCGAAP_DepExp_2012'!O34,+'App.2-CB_NewCGAAP_DepExp_2012'!O34+((C34*0.5)/D34)) -> 0 | H34: 0 | I34: 0 | K34: =IF(ISERROR(+I34+'App.2-CB_NewCGAAP_DepExp_2012'!O34-J34), 0, +I34+'App.2-CB_NewCGAAP_DepExp_2012'!O34-J34) -> 0
A35: 1910 | B35: Leasehold Improvements | E35: 0 | F35: =IF(D35=0,+'App.2-CB_NewCGAAP_DepExp_2012'!O35,+'App.2-CB_NewCGAAP_DepExp_2012'!O35+((C35*0.5)/D35)) -> 0 | H35: 0 | I35: 0 | K35: =IF(ISERROR(+I35+'App.2-CB_NewCGAAP_DepExp_2012'!O35-J35), 0, +I35+'App.2-CB_NewCGAAP_DepExp_2012'!O35-J35) -> 0
A36: 1915 | B36: Office Furniture & Equipment (10 years) | E36: 0 | F36: =IF(D36=0,+'App.2-CB_NewCGAAP_DepExp_2012'!O36,+'App.2-CB_NewCGAAP_DepExp_2012'!O36+((C36*0.5)/D36)) -> 0 | H36: 0 | I36: 0 | K36: =IF(ISERROR(+I36+'App.2-CB_NewCGAAP_DepExp_2012'!O36-J36), 0, +I36+'App.2-CB_NewCGAAP_DepExp_2012'!O36-J36) -> 0
A37: 1915 | B37: Office Furniture & Equipment (5 years) | E37: 0 | F37: =IF(D37=0,+'App.2-CB_NewCGAAP_DepExp_2012'!O37,+'App.2-CB_NewCGAAP_DepExp_2012'!O37+((C37*0.5)/D37)) -> 0 | H37: 0 | I37: 0 | K37: =IF(ISERROR(+I37+'App.2-CB_NewCGAAP_DepExp_2012'!O37-J37), 0, +I37+'App.2-CB_NewCGAAP_DepExp_2012'!O37-J37) -> 0
A38: 1920 | B38: Computer Equipment - Hardware | E38: 0 | F38: =IF(D38=0,+'App.2-CB_NewCGAAP_DepExp_2012'!O38,+'App.2-CB_NewCGAAP_DepExp_2012'!O38+((C38*0.5)/D38)) -> 0 | H38: 0 | I38: 0 | K38: =IF(ISERROR(+I38+'App.2-CB_NewCGAAP_DepExp_2012'!O38-J38), 0, +I38+'App.2-CB_NewCGAAP_DepExp_2012'!O38-J38) -> 0
A39: 1920 | B39: Computer Equip.-Hardware(Post Mar. 22/04) | E39: 0 | F39: =IF(D39=0,+'App.2-CB_NewCGAAP_DepExp_2012'!O39,+'App.2-CB_NewCGAAP_DepExp_2012'!O39+((C39*0.5)/D39)) -> 0 | H39: 0 | I39: 0 | K39: =IF(ISERROR(+I39+'App.2-CB_NewCGAAP_DepExp_2012'!O39-J39), 0, +I39+'App.2-CB_NewCGAAP_DepExp_2012'!O39-J39) -> 0
A40: 1920 | B40: Computer Equip.-Hardware(Post Mar. 19/07) | E40: 0 | F40: =IF(D40=0,+'App.2-CB_NewCGAAP_DepExp_2012'!O40,+'App.2-CB_NewCGAAP_DepExp_2012'!O40+((C40*0.5)/D40)) -> 0 | H40: 0 | I40: 0 | K40: =IF(ISERROR(+I40+'App.2-CB_NewCGAAP_DepExp_2012'!O40-J40), 0, +I40+'App.2-CB_NewCGAAP_DepExp_2012'!O40-J40) -> 0
A41: 1930 | B41: Transportation Equipment | E41: 0 | F41: =IF(D41=0,+'App.2-CB_NewCGAAP_DepExp_2012'!O41,+'App.2-CB_NewCGAAP_DepExp_2012'!O41+((C41*0.5)/D41)) -> 0 | H41: 0 | I41: 0 | K41: =IF(ISERROR(+I41+'App.2-CB_NewCGAAP_DepExp_2012'!O41-J41), 0, +I41+'App.2-CB_NewCGAAP_DepExp_2012'!O41-J41) -> 0
A42: 1935 | B42: Stores Equipment | E42: 0 | F42: =IF(D42=0,+'App.2-CB_NewCGAAP_DepExp_2012'!O42,+'App.2-CB_NewCGAAP_DepExp_2012'!O42+((C42*0.5)/D42)) -> 0 | H42: 0 | I42: 0 | K42: =IF(ISERROR(+I42+'App.2-CB_NewCGAAP_DepExp_2012'!O42-J42), 0, +I42+'App.2-CB_NewCGAAP_DepExp_2012'!O42-J42) -> 0
A43: 1940 | B43: Tools, Shop & Garage Equipment | E43: 0 | F43: =IF(D43=0,+'App.2-CB_NewCGAAP_DepExp_2012'!O43,+'App.2-CB_NewCGAAP_DepExp_2012'!O43+((C43*0.5)/D43)) -> 0 | H43: 0 | I43: 0 | K43: =IF(ISERROR(+I43+'App.2-CB_NewCGAAP_DepExp_2012'!O43-J43), 0, +I43+'App.2-CB_NewCGAAP_DepExp_2012'!O43-J43) -> 0
A44: 1945 | B44: Measurement & Testing Equipment | E44: 0 | F44: =IF(D44=0,+'App.2-CB_NewCGAAP_DepExp_2012'!O44,+'App.2-CB_NewCGAAP_DepExp_2012'!O44+((C44*0.5)/D44)) -> 0 | H44: 0 | I44: 0 | K44: =IF(ISERROR(+I44+'App.2-CB_NewCGAAP_DepExp_2012'!O44-J44), 0, +I44+'App.2-CB_NewCGAAP_DepExp_2012'!O44-J44) -> 0
A45: 1950 | B45: Power Operated Equipment | E45: 0 | F45: =IF(D45=0,+'App.2-CB_NewCGAAP_DepExp_2012'!O45,+'App.2-CB_NewCGAAP_DepExp_2012'!O45+((C45*0.5)/D45)) -> 0 | H45: 0 | I45: 0 | K45: =IF(ISERROR(+I45+'App.2-CB_NewCGAAP_DepExp_2012'!O45-J45), 0, +I45+'App.2-CB_NewCGAAP_DepExp_2012'!O45-J45) -> 0
A46: 1955 | B46: Communications Equipment | E46: 0 | F46: =IF(D46=0,+'App.2-CB_NewCGAAP_DepExp_2012'!O46,+'App.2-CB_NewCGAAP_DepExp_2012'!O46+((C46*0.5)/D46)) -> 0 | H46: 0 | I46: 0 | K46: =IF(ISERROR(+I46+'App.2-CB_NewCGAAP_DepExp_2012'!O46-J46), 0, +I46+'App.2-CB_NewCGAAP_DepExp_2012'!O46-J46) -> 0
A47: 1955 | B47: Communication Equipment (Smart Meters) | E47: 0 | F47: =IF(D47=0,+'App.2-CB_NewCGAAP_DepExp_2012'!O47,+'App.2-CB_NewCGAAP_DepExp_2012'!O47+((C47*0.5)/D47)) -> 0 | H47: 0 | I47: 0 | K47: =IF(ISERROR(+I47+'App.2-CB_NewCGAAP_DepExp_2012'!O47-J47), 0, +I47+'App.2-CB_NewCGAAP_DepExp_2012'!O47-J47) -> 0
A48: 1960 | B48: Miscellaneous Equipment | E48: 0 | F48: =IF(D48=0,+'App.2-CB_NewCGAAP_DepExp_2012'!O48,+'App.2-CB_NewCGAAP_DepExp_2012'!O48+((C48*0.5)/D48)) -> 0 | H48: 0 | I48: 0 | K48: =IF(ISERROR(+I48+'App.2-CB_NewCGAAP_DepExp_2012'!O48-J48), 0, +I48+'App.2-CB_NewCGAAP_DepExp_2012'!O48-J48) -> 0
A49: 1970 | B49: Load Management Controls Customer Premises | E49: 0 | F49: =IF(D49=0,+'App.2-CB_NewCGAAP_DepExp_2012'!O49,+'App.2-CB_NewCGAAP_DepExp_2012'!O49+((C49*0.5)/D49)) -> 0 | H49: 0 | I49: 0 | K49: =IF(ISERROR(+I49+'App.2-CB_NewCGAAP_DepExp_2012'!O49-J49), 0, +I49+'App.2-CB_NewCGAAP_DepExp_2012'!O49-J49) -> 0
A50: 1975 | B50: Load Management Controls Utility Premises | E50: 0 | F50: =IF(D50=0,+'App.2-CB_NewCGAAP_DepExp_2012'!O50,+'App.2-CB_NewCGAAP_DepExp_2012'!O50+((C50*0.5)/D50)) -> 0 | H50: 0 | I50: 0 | K50: =IF(ISERROR(+I50+'App.2-CB_NewCGAAP_DepExp_2012'!O50-J50), 0, +I50+'App.2-CB_NewCGAAP_DepExp_2012'!O50-J50) -> 0
A51: 1980 | B51: System Supervisor Equipment | E51: 0 | F51: =IF(D51=0,+'App.2-CB_NewCGAAP_DepExp_2012'!O51,+'App.2-CB_NewCGAAP_DepExp_2012'!O51+((C51*0.5)/D51)) -> 0 | H51: 0 | I51: 0 | K51: =IF(ISERROR(+I51+'App.2-CB_NewCGAAP_DepExp_2012'!O51-J51), 0, +I51+'App.2-CB_NewCGAAP_DepExp_2012'!O51-J51) -> 0
A52: 1985 | B52: Miscellaneous Fixed Assets | E52: 0 | F52: =IF(D52=0,+'App.2-CB_NewCGAAP_DepExp_2012'!O52,+'App.2-CB_NewCGAAP_DepExp_2012'!O52+((C52*0.5)/D52)) -> 0 | H52: 0 | I52: 0 | K52: =IF(ISERROR(+I52+'App.2-CB_NewCGAAP_DepExp_2012'!O52-J52), 0, +I52+'App.2-CB_NewCGAAP_DepExp_2012'!O52-J52) -> 0
A53: 1990 | B53: Other Tangible Property | E53: 0 | F53: =IF(D53=0,+'App.2-CB_NewCGAAP_DepExp_2012'!O53,+'App.2-CB_NewCGAAP_DepExp_2012'!O53+((C53*0.5)/D53)) -> 0 | H53: 0 | I53: 0 | K53: =IF(ISERROR(+I53+'App.2-CB_NewCGAAP_DepExp_2012'!O53-J53), 0, +I53+'App.2-CB_NewCGAAP_DepExp_2012'!O53-J53) -> 0
A54: 1995 | B54: Contributions & Grants | E54: 0 | F54: =IF(D54=0,+'App.2-CB_NewCGAAP_DepExp_2012'!O54,+'App.2-CB_NewCGAAP_DepExp_2012'!O54+((C54*0.5)/D54)) -> 0 | H54: 0 | I54: 0 | K54: =IF(ISERROR(+I54+'App.2-CB_NewCGAAP_DepExp_2012'!O54-J54), 0, +I54+'App.2-CB_NewCGAAP_DepExp_2012'!O54-J54) -> 0
B55: Total | C55: =SUM(C17:C54) -> 0 | F55: =SUM(F17:F54) -> 0 | G55: 0 | H55: 0 | I55: 0 | J55: 0 | K55: 0
A57: Notes:
A58: 1 | B58: Board policy of the "half-year" rule - the applicant must ensure that additions in the year attract a half-year depreciation expense in the first year. Deviations from this standard practice must be supported in the application.
A59: 2 | B59: The applicant must provide an explanation of material variances in evidence.
A60: 3 | B60: This column refers to the calculated full year depreciation but excludes the depreciation expense on assets fully depreciated during the year. This column is used for the purpose of calculating depreciation expense in the following year on the next worksheet.
A62: General: | B62: Applicants must provide a breakdown of depreciation and amortization expense in the above format for all relevant accounts. Asset Retirement Obligations (AROs), depreciation and accretion expense should be disclosed separately consistent with the Notes of historical Audited Financial Statements.

Sheet App.2-EC_Account 1576
A9: Table 1 (Appendix 2-EC)
A10: Account 1576 - Accounting Changes under CGAAP
A11: 2013 Changes in Accounting Policies under CGAAP
A13: For applicants that made capitalization and depreciation expense accounting policy changes under CGAAP effective January 1, 2013
B17: =RebaseYear &" Rebasing Year" -> 2011 Rebasing Year | C17: 2011 | D17: 2012 | E17: 2013 | F17: 2014
A18: Reporting Basis | B18: CGAAP | C18: IRM | D18: IRM | E18: IRM | F18: IRM
B19: Forecast | C19: Actual | D19: Actual | E19: Actual | F19: Actual
F20: $
A21: PP&E Values under former CGAAP
A22: Opening net PP&E - Note 1 | E22: =ROUND('App.2-BA_Fixed Asset Cont'!D61+'App.2-BA_Fixed Asset Cont'!I61,0) -> 62595123 | F22: =+E25 -> 67383734
A23: Net Additions - Note 4 | E23: =ROUND('App.2-BA_Fixed Asset Cont'!E61+'App.2-BA_Fixed Asset Cont'!F61,0) -> 11211167 | F23: =ROUND('App.2-BA_Fixed Asset Cont'!E148+'App.2-BA_Fixed Asset Cont'!F148,0) -> 5892600
A24: Net Depreciation (amounts should be negative) - Note 4 | E24: =ROUND('App.2-BA_Fixed Asset Cont'!J61+'App.2-BA_Fixed Asset Cont'!K61,0) -> -6422556 | F24: =ROUND('App.2-BA_Fixed Asset Cont'!J148+'App.2-BA_Fixed Asset Cont'!K148,0) -> -4874387
A25: Closing net PP&E (1) | E25: =E22+E23+E24 -> 67383734 | F25: =SUM(F22:F24) -> 68401947
A27: PP&E Values under revised CGAAP (Starts from 2013)
A28: Opening net PP&E - Note 1 | E28: =E22 -> 62595123 | F28: =+E31 -> 68625082
A29: Net Additions - Note 4 | E29: =ROUND('App.2-BA_Fixed Asset Cont'!T61+'App.2-BA_Fixed Asset Cont'!V61,0) -> 10119200 | F29: =ROUND('App.2-BA_Fixed Asset Cont'!T148+'App.2-BA_Fixed Asset Cont'!V148,0) -> 5126384
A30: Net Depreciation (amounts should be negative) - Note 4 | E30: =ROUND('App.2-BA_Fixed Asset Cont'!Z61+'App.2-BA_Fixed Asset Cont'!AB61,0) -> -4089241 | F30: =ROUND('App.2-BA_Fixed Asset Cont'!Z148+'App.2-BA_Fixed Asset Cont'!AB148,0) -> -3331955
A31: Closing net PP&E (2) | E31: =SUM(E28:E30) -> 68625082 | F31: =SUM(F28:F30) -> 70419511
A33: Difference in Closing net PP&E, former CGAAP vs. revised CGAAP | E33: =E25-E31 -> -1241348 | F33: =F25-F31 -> -2017564
A36: Effect on Deferral and Variance Account Rate Riders
A37: Closing balance in Account 1576 | F37: =F33 -> -2017564 | H37: WACC | I37: 0.0704
A38: Return on Rate Base Associated with Account 1576 balance at WACC - Note 2 | F38: =F33*$I$37*$I$38+1 -> -142035.5056 | G38: # of years of rate rider disposition period | I38: 1
A39: Amount included in Deferral and Variance Account Rate Rider Calculation | F39: =F37+F38 -> -2159599.506
A41: Notes:
A42: 1 For an applicant that made the capitalization and depreciation expense accounting policy changes on January 1, 2013, the PP&E values as of January 1, 2013 under both former CGAAP and revised CGAAP should be the same.
A43: 2 Return on rate base associated with Account 1576 balance is calculated as:
A44: the variance account opening balance as of 2015 rebasing year x WACC X # of years of rate rider disposition period
A45: * Please note that the calculation should be adjusted once WACC is updated and finalized in the rate application.
A46: 3 Account 1576 is cleared by including the total balance in the deferral and variance account rate rider calculation.
A47: 4 Net additions are additions net of disposals; Net depreciation is additions to depreciation net of disposals.
... 1 more rows

Sheet App.2-BA_Fixed Asset Cont
B2: TABLE 2 (Appendix 2-BA) | Q2: TABLE 3 (Appendix 2-BA)
B3: Fixed Asset Continuity Schedule | Q3: Fixed Asset Continuity Schedule
E5: Accounting Standard | F5: CGAAP | T5: Accounting Standard | V5: RCGAAP
E6: Year | F6: 2013 | T6: Year | V6: 2013
D8: Cost | J8: Accumulated Depreciation | S8: Cost | Z8: Accumulated Depreciation
B9: OEB | C9: Description | D9: Opening Balance | E9: Additions | F9: Disposals | G9: Closing Balance | I9: Opening Balance | J9: Additions | K9: Disposals | L9: Closing Balance | M9: Net Book Value | Q9: OEB | R9: Description | S9: Opening Balance | T9: Additions | V9: Disposals | W9: Closing Balance | Y9: Opening Balance | Z9: Additions | AB9: Disposals | AC9: Closing Balance | AD9: Net Book Value
B10: 1611 | C10: Computer Software (Formally known as Account 1925) | G10: =D10+E10+F10 -> 0 | I10: 0 | L10: =I10+J10+K10 -> 0 | M10: =G10+L10 -> 0 | Q10: 1611 | R10: Computer Software (Formally known as Account 1925) | S10: 0 | W10: =S10+T10+V10 -> 0 | Y10: 0 | AC10: =Y10+Z10+AB10 -> 0 | AD10: =W10+AC10 -> 0
B11: 1612 | C11: Land Rights (Formally known as Account 1906) | G11: =D11+E11+F11 -> 0 | I11: 0 | L11: =I11+J11+K11 -> 0 | M11: =G11+L11 -> 0 | Q11: 1612 | R11: Land Rights (Formally known as Account 1906) | S11: 0 | W11: 0 | Y11: 0 | AC11: =Y11+Z11+AB11 -> 0 | AD11: =W11+AC11 -> 0
B12: 1805 | C12: Land | D12: 245786 | G12: 245786 | I12: 0 | L12: 0 | M12: 245786 | Q12: 1805 | R12: Land | S12: 245786 | W12: 245786 | Y12: 0 | AC12: 0 | AD12: 245786
B13: 1806 | C13: Land Rights | D13: 10971 | G13: 10971 | I13: 0 | L13: 0 | M13: 10971 | Q13: 1806 | R13: Land rights | S13: 10971 | W13: 10971 | Y13: 0 | AC13: 0 | AD13: 10971
B14: 1808 | C14: Buildings | D14: 1117301.59 | G14: 1117301.59 | I14: -1113010.58 | J14: -2807 | L14: -1115817.58 | M14: 1484.01 | Q14: 1808 | R14: Buildings | S14: 1117301.59 | W14: 1117301.59 | Y14: -1113010.58 | Z14: -2807 | AC14: -1115817.58 | AD14: 1484.01
B15: 1810 | C15: Leasehold Improvements | D15: 0 | G15: 0 | I15: 0 | L15: 0 | M15: 0 | Q15: 1810 | R15: Leasehold Improvements | S15: 0 | W15: 0 | Y15: 0 | AC15: 0 | AD15: 0
B16: 1815 | C16: Transformer Station Equipment >50 kV | D16: 0 | G16: 0 | I16: 0 | L16: 0 | M16: 0 | Q16: 1815 | R16: Transformer Station Equipment >50 kV | S16: 0 | W16: 0 | Y16: 0 | AC16: 0 | AD16: 0
B17: 1820 | C17: Distribution Station Equipment <50 kV | D17: 17707464.53 | E17: 173204 | G17: 17880668.53 | I17: -6798861.13 | J17: -551576 | L17: -7350437.13 | M17: 10530231.4 | Q17: 1820 | R17: Distribution Station Equipment <50 kV | S17: 17707464.53 | T17: 173204.46 | W17: 17880668.99 | Y17: -6798861.13 | Z17: -305456.97 | AC17: -7104318.1 | AD17: 10776350.89
B18: 1825 | C18: Storage Battery Equipment | D18: 0 | G18: 0 | I18: 0 | L18: 0 | M18: 0 | Q18: 1825 | R18: Storage Battery Equipment | S18: 0 | W18: 0 | Y18: 0 | AC18: .
B19: 1830 | C19: Poles, Towers & Fixtures | D19: 26768950.47 | E19: =1630212+505229.54-101814-49499 -> 1984128.54 | G19: 28753079.01 | I19: -11348583.05 | J19: =-971251-23794 -> -995045 | L19: -12343628.05 | M19: 16409450.96 | Q19: 1830 | R19: Poles, Towers & Fixtures | S19: 26768950.47 | T19: =1630212.02-101814-49499 -> 1478899.02 | W19: 28247849.49 | Y19: -11348583.05 | Z19: -413075.67 | AC19: -11761658.72 | AD19: 16486190.77
B20: 1835 | C20: Overhead Conductors & Devices | D20: 16827902.01 | E20: =831927+262056.14-29874-10109 -> 1054000.14 | G20: 17881902.15 | I20: -8136110.89 | J20: -601504 | L20: -8737614.89 | M20: 9144287.26 | Q20: 1835 | R20: Overhead Conductors & Devices | S20: 16827902.01 | T20: =831927.48-29874-10109 -> 791944.48 | W20: 17619846.49 | Y20: -8136110.89 | Z20: -198317.49 | AC20: -8334428.38 | AD20: 9285418.11
G21: 0 | L21: 0 | M21: 0 | Q21: 1835 | R21: Overhead Conductors & Devices (Switches)
B22: 1840 | C22: Underground Conduit | D22: 20466527.59 | E22: =1221306-2823-1876 -> 1216607 | G22: 21683134.59 | I22: -8223079.92 | J22: -807004 | L22: -9030083.92 | M22: 12653050.67 | Q22: 1840 | R22: Underground Conduit | S22: 20466527.59 | T22: =1221305.52-2823-1876 -> 1216606.52 | W22: =S22+T22+V22 -> 21683134.11 | Y22: -8223079.92 | Z22: -111776.7 | AC22: -8334856.62 | AD22: 13348277.49
B23: 1845 | C23: Underground Conductors & Devices | D23: 17706836.45 | E23: =889990+201738.36-3297 -> 1088431.36 | G23: 18795267.81 | I23: -9818551.8 | J23: -678727 | L23: -10497278.8 | M23: 8297989.01 | Q23: 1845 | R23: Underground Conductors & Devices | S23: 17706836.78 | T23: =889990-3297 -> 886693 | W23: 18593529.78 | Y23: -9818551.66 | Z23: =-177586.14-421482 -> -599068.14 | AC23: -10417619.8 | AD23: 8175909.98
B24: 1850 | C24: Line Transformers | D24: 32381502.08 | E24: =957627+122943.82-23878 -> 1056692.82 | F24: -135483 | G24: 33302711.9 | I24: -16153946.63 | J24: =-1106416 -> -1106416 | K24: 99299 | L24: -17161063.63 | M24: 16141648.27 | Q24: 1850 | R24: Line Transformers | S24: 32381502.08 | T24: =957627.09-23878 -> 933749.09 | V24: -135483 | W24: 33179768.17 | Y24: -16153946.63 | Z24: -425373.05 | AB24: 99299 | AC24: -16480020.68 | AD24: 16699747.49
B25: 1855 | C25: Services (Overhead & Underground) | D25: 18794812.36 | E25: =125249-4892 -> 120357 | G25: 18915169.36 | I25: -12843086.36 | J25: -602122 | L25: -13445208.36 | M25: 5469961 | Q25: 1855 | R25: Services (Overhead) | S25: 6045627.22 | T25: =112420.64-4892 -> 107528.64 | W25: 6153155.86 | Y25: -4241051.23 | Z25: -81371.85 | AC25: -4322423.08 | AD25: 1830732.78
G26: 0 | L26: 0 | M26: 0 | Q26: 1855 | R26: Services (Underground) | S26: 12749185.51 | T26: 12827.95 | W26: 12762013.46 | Y26: -8602035.15 | Z26: -355008.11 | AC26: -8957043.26 | AD26: 3804970.2
B27: 1860 | C27: Meters (includes Smart Meters) | D27: 1580036.56 | E27: =6310391.72-373 -> 6310018.72 | G27: 7890055.28 | I27: -397942.73 | J27: =-1941590.05-3496-2848 -> -1947934.05 | K27: =4200-3496 -> 704 | L27: -2345172.78 | M27: 5544882.5 | Q27: 1860 | R27: Meters | S27: 1580036.56 | T27: =6310391.72-373 -> 6310018.72 | W27: 7890055.28 | Y27: -397942.73 | Z27: -1941590.05 | AB27: =4200-3496 -> 704 | AC27: -2338828.78 | AD27: 5551226.5
C28: Meters (Smart Meters) | D28: 0 | G28: 0 | I28: 0 | L28: 0 | M28: 0 | Q28: 1860 | R28: Meters (Smart Meters) | S28: 0 | T28: =E28 -> 0 | W28: 0 | Y28: 0 | AC28: 0 | AD28: 0
B29: 1905 | C29: Land | D29: 182214.88 | G29: 182214.88 | L29: 0 | M29: 182214.88 | Q29: 1905 | R29: Land | S29: 182214.88 | W29: 182214.88 | Y29: 0 | AC29: 0 | AD29: 182214.88
B30: 1908 | C30: Buildings & Fixtures | D30: 5941575.17 | E30: 299710 | G30: 6241285.17 | I30: -2396272.23 | J30: -122097 | L30: -2518369.23 | M30: 3722915.94 | Q30: 1908 | R30: Buildings & Fixtures | S30: 5941575.17 | T30: =299709.5-8700 -> 291009.5 | W30: 6232584.67 | Y30: -2396272.23 | Z30: =-12907.83+200 -> -12707.83 | AC30: -2408980.06 | AD30: 3823604.61
B31: 1908 | C31: HVAC | D31: 0 | G31: 0 | L31: 0 | M31: 0 | Q31: 1908 | R31: HVAC | T31: 8700 | W31: 8700 | Y31: 0 | Z31: -200 | AC31: =Y31+Z31+AB31 -> -200 | AD31: =W31+AC31 -> 8500
B32: 1908 | C32: Parking & Paving | D32: 0 | G32: 0 | I32: 0 | L32: 0 | M32: 0 | Q32: 1908 | R32: Parking & Paving | W32: 0 | Y32: 0 | AC32: =Y32+Z32+AB32 -> 0 | AD32: =W32+AC32 -> 0
B33: 1908 | C33: Roof | D33: 0 | G33: 0 | L33: 0 | M33: 0 | Q33: 1908 | R33: Roof | W33: 0 | Y33: 0 | AC33: =Y33+Z33+AB33 -> 0 | AD33: =W33+AC33 -> 0
B34: 1910 | C34: Leasehold Improvements | D34: 0 | G34: 0 | I34: 0 | L34: 0 | M34: 0 | Q34: 1910 | R34: Leasehold Improvements | S34: 0 | W34: 0 | Y34: 0 | AC34: 0 | AD34: 0
B35: 1915 | C35: Office Furniture & Equipment (10 years) | D35: 1032336.03 | E35: 8833 | G35: 1041169.03 | I35: -866935.2 | J35: -29915 | L35: -896850.2 | M35: 144318.83 | Q35: 1915 | R35: Office Furniture & Equipment (10 years) | S35: 1032336.03 | T35: 8833 | W35: 1041169.03 | Y35: -866935.2 | Z35: -29923.21 | AC35: -896858.41 | AD35: 144310.62
B36: 1915 | C36: Office Furniture & Equipment (5 years) | D36: 0 | G36: 0 | I36: 0 | L36: 0 | M36: 0 | Q36: 1915 | R36: Office Furniture & Equipment (5 years) | S36: 0 | W36: 0 | Y36: 0 | AC36: 0 | AD36: 0
B37: 1920 | C37: Computer Equipment - Hardware | D37: 1554329 | E37: 55920 | G37: 1610249 | I37: -1315603 | J37: -74539 | L37: -1390142 | M37: 220107 | Q37: 1920 | R37: Computer Equipment - Hardware | S37: 1554329 | T37: 55920.38 | W37: 1610249.38 | Y37: -1315603.21 | Z37: -100631.02 | AC37: -1416234.23 | AD37: 194015.15
B38: 1920 | C38: Computer Equip.-Hardware(Post Mar. 22/04) | D38: 0 | G38: 0 | I38: 0 | L38: 0 | M38: 0 | Q38: 1920 | R38: Computer Equip.-Hardware(Post Mar. 22/04) | S38: 0 | W38: 0 | Y38: 0 | AC38: 0 | AD38: 0
B39: 1920 | C39: Computer Equip.-Hardware(Post Mar. 19/07) | D39: 0 | G39: 0 | L39: 0 | M39: 0 | Q39: 1920 | R39: Computer Equip.-Hardware(Post Mar. 19/07) | S39: 0 | W39: 0 | Y39: 0 | AC39: 0 | AD39: 0
B40: 1925 | C40: Computer Equip.-Software | D40: 1999572.24 | E40: =189055-26565-32392 -> 130098 | G40: 2129670.24 | I40: -1631888 | J40: -131412 | L40: -1763300 | M40: 366370.24 | Q40: 1925 | R40: Computer Equip.-Software (Application) | S40: 1999572.24 | T40: =189055.34-26565-32392 -> 130098.34 | W40: 2129670.58 | Y40: -1631888.08 | Z40: -131449.62 | AC40: -1763337.7 | AD40: 366332.88
G41: 0 | L41: 0 | M41: 0 | Q41: 1925 | R41: Computer Equip.-Software (Server) | W41: 0 | AC41: =Y41+Z41+AB41 -> 0 | AD41: =W41+AC41 -> 0
B42: 1930 | C42: Transportation Equipment | D42: 0 | G42: 0 | L42: 0 | M42: 0 | Q42: 1930 | R42: Transportation Equipment | S42: 0 | W42: 0 | Y42: 0 | AC42: 0 | AD42: 0
B43: 1935 | C43: Stores Equipment | D43: 56186.63 | G43: 56186.63 | I43: -56186.63 | L43: -56186.63 | M43: 0 | Q43: 1935 | R43: Stores Equipment | S43: 56186.63 | W43: 56186.63 | Y43: -56186.63 | AC43: -56186.63 | AD43: 0
B44: 1940 | C44: Tools, Shop & Garage Equipment | D44: 4284 | G44: 4284 | I44: -3427.2 | J44: -428 | L44: -3855.2 | M44: 428.8 | Q44: 1940 | R44: Tools, Shop & Garage Equipment | S44: 4284 | W44: =S44+T44+V44 -> 4284 | Y44: -3427.2 | Z44: -428.4 | AC44: -3855.6 | AD44: 428.4
B45: 1945 | C45: Measurement & Testing Equipment | D45: 20903.01 | G45: 20903.01 | I45: =-16721.2-0.1 -> -16721.3 | J45: -2090 | L45: -18811.3 | M45: 2091.71 | Q45: 1945 | R45: Measurement & Testing Equipment | S45: 20903.01 | W45: 20903.01 | Y45: -16721.2 | Z45: -2090.9 | AC45: -18812.1 | AD45: 2090.91
B46: 1950 | C46: Power Operated Equipment | D46: 0 | G46: 0 | I46: 0 | L46: 0 | M46: 0 | Q46: 1950 | R46: Power Operated Equipment | S46: 0 | W46: 0 | Y46: 0 | AC46: 0 | AD46: 0
B47: 1955 | C47: Communications Equipment | D47: 78103.41 | G47: 78103.41 | I47: =-78103.41 -> -78103.41 | L47: -78103.41 | M47: 0 | Q47: 1955 | R47: Communications Equipment | S47: 78103.41 | W47: 78103.41 | Y47: -78103.41 | AC47: -78103.41 | AD47: 0
B48: 1955 | C48: Communication Equipment (Smart Meters) | D48: 0 | G48: 0 | I48: 0 | L48: 0 | M48: 0 | Q48: 1955 | R48: Communication Equipment (Smart Meters) | S48: 0 | W48: 0 | Y48: 0 | AC48: 0 | AD48: 0
B49: 1960 | C49: Miscellaneous Equipment | D49: 0 | G49: 0 | I49: 0 | L49: 0 | M49: 0 | Q49: 1960 | R49: Miscellaneous Equipment | S49: 0 | W49: 0 | Y49: 0 | AC49: 0 | AD49: 0
B50: 1970 | C50: Load Management Controls Customer Premises | D50: 0 | G50: 0 | I50: 0 | L50: 0 | M50: 0 | Q50: 1970 | R50: Load Management Controls Customer Premises | S50: 0 | W50: 0 | Y50: 0 | AC50: 0 | AD50: 0
B51: 1975 | C51: Load Management Controls Utility Premises | D51: 0 | G51: 0 | I51: 0 | L51: 0 | M51: 0 | Q51: 1975 | R51: Load Management Controls Utility Premises | S51: 0 | W51: 0 | Y51: 0 | AC51: 0 | AD51: 0
B52: 1980 | C52: System Supervisor Equipment | D52: 2337752.34 | E52: 88446 | G52: 2426198.34 | I52: =-1709884.23-0.2 -> -1709884.43 | J52: -84152 | L52: -1794036.43 | M52: 632161.91 | Q52: 1980 | R52: System Supervisor Equipment | S52: 2337752.34 | T52: 88446.41 | W52: 2426198.75 | Y52: -1709884.23 | Z52: -90171.44 | AC52: -1800055.67 | AD52: 626143.08
B53: 1985 | C53: Miscellaneous Fixed Assets | D53: 0 | G53: 0 | I53: 0 | L53: 0 | M53: 0 | Q53: 1985 | R53: Miscellaneous Fixed Assets | S53: 0 | W53: 0 | Y53: 0 | AC53: 0 | AD53: 0
B54: 1990 | C54: Other Tangible Property | D54: 0 | G54: 0 | I54: 0 | L54: 0 | M54: 0 | Q54: 1990 | R54: Other Tangible Property | S54: 0 | W54: 0 | Y54: 0 | AC54: 0 | AD54: 0
B55: 1995 | C55: Contributions & Grants | D55: -29200787.43 | E55: =-2397004+157207 -> -2239797 | G55: -31440584.43 | I55: 7888758 | J55: 1215209 | L55: 9103967 | M55: -22336617.43 | Q55: 1995 | R55: Contributions & Grants | S55: -29200787.43 | T55: =-2397004+157207 -> -2239797 | W55: -31440584.43 | Y55: 7888758 | Z55: 612203.21 | AC55: 8500961.21 | AD55: -22939623.22
B56: 2440 | C56: Deferred Revenue5 | G56: 0 | L56: 0 | M56: 0 | Q56: 2440 | R56: Deferred Revenue5 | S56: 0 | Y56: 0 | AC56: 0 | AD56: 0
B57: 2075 | C57: Non Rate-Regulated Utility Assets | E57: 91998.19 | G57: 91998.19 | L57: 0 | M57: 91998.19 | Q57: 2075 | R57: Non Rate-Regulated Utility Assets | T57: 91998.19 | W57: =S57+T57+V57 -> 91998.19 | Y57: 0 | AC57: =Y57+Z57+AB57 -> 0 | AD57: =W57-AC57 -> 91998.19
C58: Sub-Total | D58: =SUM(D10:D57) -> 137614559.9 | E58: =SUM(E10:E57) -> 11438647.77 | F58: =SUM(F10:F57) -> -135483 | G58: =SUM(G10:G57) -> 148917724.7 | I58: =SUM(I10:I57) -> -75019436.49 | J58: =SUM(J10:J57) -> -6522559.05 | K58: =SUM(K10:K57) -> 100003 | L58: =SUM(L10:L57) -> -81441992.54 | M58: =SUM(M10:M57) -> 67475732.15 | R58: Sub-Total | S58: =SUM(S10:S57) -> 137614560.6 | T58: =SUM(T10:T57) -> 10346680.7 | V58: =SUM(V10:V57) -> -135483 | W58: =SUM(W10:W57) -> 147825758.3 | Y58: =SUM(Y10:Y57) -> -75019436.36 | Z58: =SUM(Z10:Z57) -> -4189244.24 | AB58: =SUM(AB10:AB57) -> 100003 | AC58: =SUM(AC10:AC57) -> -79108677.6 | AD58: =SUM(AD10:AD57) -> 68717080.72
C59: Less Socialized Renewable Energy Generation Investments (input as negative) | G59: =D59+E59+F59 -> 0 | L59: =I59+J59+K59 -> 0 | M59: =G59+L59 -> 0 | R59: Less Socialized Renewable Energy Generation Investments (input as negative) | W59: =S59+T59+V59 -> 0 | AC59: =Y59+Z59+AB59 -> 0 | AD59: =W59-AC59 -> 0
C60: Less Other Non Rate-Regulated Utility Assets (input as negative) | E60: -91998.19 | G60: =D60+E60+F60 -> -91998.19 | L60: =I60+J60+K60 -> 0 | M60: =G60+L60 -> -91998.19 | R60: Less Other Non Rate-Regulated Utility Assets (input as negative) | T60: -91998.19 | W60: =S60+T60+V60 -> -91998.19 | Y60: 0 | AC60: =Y60+Z60+AB60 -> 0 | AD60: =W60-AC60 -> -91998.19
C61: Total PP&E | D61: =SUM(D58:D60) -> 137614559.9 | E61: =SUM(E58:E60) -> 11346649.58 | F61: =SUM(F58:F60) -> -135483 | G61: =SUM(G58:G60) -> 148825726.5 | I61: =SUM(I58:I60) -> -75019436.49 | J61: =SUM(J58:J60) -> -6522559.05 | K61: =SUM(K58:K60) -> 100003 | L61: =SUM(L58:L60) -> -81441992.54 | M61: =SUM(M58:M60) -> 67383733.96 | R61: Total PP&E | S61: =SUM(S58:S60) -> 137614560.6 | T61: =SUM(T58:T60) -> 10254682.51 | V61: =SUM(V58:V60) -> -135483 | W61: =SUM(W58:W60) -> 147733760.1 | Y61: =SUM(Y58:Y60) -> -75019436.36 | Z61: -4189244.24 | AB61: 100003 | AC61: -79108677.6 | AD61: 68625082.53
G63: Less: Fully Allocated Depreciation | W63: Less: Fully Allocated Depreciation
C64: Transportation | G64: Transportation | R64: Transportation | W64: Transportation
C65: Stores Equipment | G65: Stores Equipment | R65: Stores Equipment | W65: Stores Equipment
G66: Net Depreciation | J66: =J61-J64-J65 -> -6522559.05 | W66: Net Depreciation | Z66: =Z61-Z64-Z65 -> -4189244.24
A72: Notes:
A74: 1 | B74: Tables in the format outlined above covering all fixed asset accounts should be submitted for the Test Year, Bridge Year and all relevant historical years. At a minimum , the applicant must provide data for the earlier of: 1) all historical years back to its last rebasing; or 2) at least three years of historical actuals, in addition to Bridge Year and Test Year forecasts.
A77: 2 | B77: The "CCA Class" for fixed assets should agree with the CCA Class used for tax purposes in Tax Returns. Fixed Assets sub-components may be used where the underlying asset components are classified under multiple CCA Classes for tax purposes. If an applicant uses any different classes from those shown in the table, an explanation should be provided. (also see note 3 below).
A80: 3 | B80: The table may need to be customized for a utility's asset categories or for any new asset accounts announced or authorized by the Board.
A82: 4 | B82: The additions column (E) must not include construction work in progress (CWIP).
A84: 5 | B84: Effective on the date of IFRS adoption, customer contributions will no longer be recorded in Account 1995 Contributions & Grants, but will be recorded in Account 2440, Deferred Revenues.
A86: 6 | B86: Where a distributor for general financial reporting purposes under IFRS has accounted for the amount of gain or loss on the retirement of assets in a pool of like assets as a charge or credit to income, for reporting and rate application filings the distributor shall reclassify such gains and losses as depreciation expense, and disclose the amount separately.
B90: TABLE 4 (Appendix 2-BA) | Q90: TABLE 4 (Appendix 2-BA)
B91: Fixed Asset Continuity Schedule | Q91: Fixed Asset Continuity Schedule
E93: Accounting Standard | F93: CGAAP | T93: Accounting Standard | V93: RCGAAP
E94: Year | F94: 2014 | T94: Year | V94: 2014
D96: Cost | J96: Accumulated Depreciation | S96: Cost | Z96: Accumulated Depreciation
B97: OEB | C97: Description | D97: Opening Balance | E97: Additions | F97: Disposals | G97: Closing Balance | I97: Opening Balance | J97: Additions | K97: Disposals | L97: Closing Balance | M97: Net Book Value | Q97: OEB | R97: Description | S97: Opening Balance | T97: Additions | U97: Reclassification | V97: Disposals | W97: Closing Balance | Y97: Opening Balance | Z97: Additions | AA97: Reclassification | AB97: Disposals | AC97: Closing Balance | AD97: Net Book Value
B98: 1611 | C98: Computer Software (Formally known as Account 1925) | G98: =D98+E98+F98 -> 0 | L98: =I98+J98+K98 -> 0 | M98: =G98+L98 -> 0 | Q98: 1611 | R98: Computer Software (Formally known as Account 1925) | S98: =W10 -> 0 | W98: =S98+U98+T98+V98 -> 0 | Y98: =AC10 -> 0 | AC98: =Y98+Z98+AA98+AB98 -> 0 | AD98: =W98+AC98 -> 0
B99: 1612 | C99: Land Rights (Formally known as Account 1906) | G99: =D99+E99+F99 -> 0 | L99: =I99+J99+K99 -> 0 | M99: =G99+L99 -> 0 | Q99: 1612 | R99: Land Rights (Formally known as Account 1906) | S99: 0 | W99: =S99+U99+T99+V99 -> 0 | Y99: 0 | AC99: =Y99+Z99+AA99+AB99 -> 0 | AD99: =W99+AC99 -> 0
B100: 1805 | C100: Land | D100: =G12 -> 245786 | G100: =D100+E100+F100 -> 245786 | L100: 0 | M100: 245786 | Q100: 1805 | R100: Land | S100: 245786 | W100: 245786 | Y100: 0 | AC100: 0 | AD100: 245786
B101: 1806 | C101: Land Rights | D101: 10971 | G101: =D101+E101+F101 -> 10971 | L101: 0 | M101: 10971 | Q101: 1806 | R101: Land rights | S101: 10971 | W101: 10971 | Y101: 0 | AC101: 0 | AD101: 10971
B102: 1808 | C102: Buildings | D102: 1117301.59 | G102: 1117301.59 | I102: =L14 -> -1115817.58 | J102: -1484 | L102: -1117301.58 | M102: 0.01000000001 | Q102: 1808 | R102: Buildings | S102: 1117301.59 | W102: 1117301.59 | Y102: -1115817.58 | AC102: -1115817.58 | AD102: 1484.01
B103: 1810 | C103: Leasehold Improvements | D103: 0 | G103: 0 | L103: 0 | M103: 0 | Q103: 1810 | R103: Leasehold Improvements | S103: 0 | W103: 0 | Y103: 0 | AC103: 0 | AD103: 0
B104: 1815 | C104: Transformer Station Equipment >50 kV | D104: 0 | G104: 0 | L104: 0 | M104: 0 | Q104: 1815 | R104: Transformer Station Equipment >50 kV | S104: 0 | W104: 0 | Y104: 0 | AC104: 0 | AD104: 0
B105: 1820 | C105: Distribution Station Equipment <50 kV | D105: 17880668.53 | E105: 104934.41 | F105: -59985 | G105: 17925617.94 | I105: =L17 -> -7350437.13 | J105: -556211.54 | K105: 59985 | L105: -7846663.67 | M105: 10078954.27 | Q105: 1820 | R105: Distribution Station Equipment <50 kV | S105: 17880668.99 | T105: 104934 | V105: -59985 | W105: 17925617.99 | Y105: -7104318.1 | Z105: =-306646-2 -> -306648 | AB105: 59985 | AC105: -7350981.1 | AD105: 10574636.89
B106: 1825 | C106: Storage Battery Equipment | D106: 0 | G106: 0 | L106: 0 | M106: 0 | Q106: 1825 | R106: Storage Battery Equipment | S106: 0 | W106: 0 | Y106: . | AD106: 0
B107: 1830 | C107: Poles, Towers & Fixtures | D107: 28753079.01 | E107: =1714005.5+290473.84+101814+49499 -> 2155792.34 | G107: 30908871.35 | I107: =L19 -> -12343628.05 | J107: -1045299.35 | L107: -13388927.4 | M107: 17519943.95 | Q107: 1830 | R107: Poles, Towers & Fixtures | S107: 28247849.49 | T107: =1714006+101814+49499 -> 1865319 | W107: 30113168.49 | Y107: -11761658.72 | Z107: =-193836-256121 -> -449957 | AC107: -12211615.72 | AD107: 17901552.77
B108: 1835 | C108: Overhead Conductors & Devices | D108: 17881902.15 | E108: =1016279.76+152413.48+29874+10109 -> 1208676.24 | G108: 19090578.39 | I108: =L20 -> -8737614.89 | J108: -625717.71 | L108: -9363332.6 | M108: 9727245.79 | Q108: 1835 | R108: Overhead Conductors & Devices | S108: 17619846.49 | T108: =816729+29874+10109 -> 856712 | U108: =-5166891 -> -5166891 | W108: 13309667.49 | Y108: -8334428.38 | Z108: =-76044-51505 -> -127549 | AA108: =1047265+882657 -> 1929922 | AC108: -6532055.38 | AD108: 6777612.11
D109: 0 | G109: 0 | L109: 0 | M109: 0 | Q109: 1835 | R109: Overhead Conductors & Devices (Switches) | S109: 0 | T109: 199550 | U109: 5166891 | W109: 5366441 | Y109: 0 | Z109: =-83469-73560 -> -157029 | AA109: =-1047265-882657 -> -1929922 | AC109: -2086951 | AD109: 3279490
B110: 1840 | C110: Underground Conduit | D110: 21683134.59 | E110: =-9295210.13+2823+1876 -> -9290511.13 | G110: 12392623.46 | I110: =L22 -> -9030083.92 | J110: -804662.04 | L110: -9834745.96 | M110: 2557877.5 | Q110: 1840 | R110: Underground Conduit | S110: 21683134.11 | T110: =720929+2823+1876 -> 725628 | U110: =-10016139+1 -> -10016138 | W110: 12392624.11 | Y110: -8334856.62 | Z110: =-281020-6340 -> -287360 | AA110: =2805793-1 -> 2805792 | AC110: -5816424.62 | AD110: 6576199.49
B111: 1845 | C111: Underground Conductors & Devices | D111: 18795267.81 | E111: =12200531.11+248347.04+3297 -> 12452175.15 | G111: 31247442.96 | I111: =L23 -> -10497278.8 | J111: -677517.29 | L111: -11174796.09 | M111: 20072646.87 | Q111: 1845 | R111: Underground Conductors & Devices-db | S111: 18593529.78 | T111: =1626805+3297 -> 1630102 | U111: 10573726 | W111: 30797357.78 | Y111: -10417619.8 | Z111: =-587521-50815 -> -638336 | AA111: -2961988 | AC111: -14017943.8 | AD111: 16779413.98
B112: 1850 | C112: Line Transformers | D112: 33302711.9 | E112: =-5358290.35+74982.47+23878 -> -5259429.88 | F112: -279267.94 | G112: 27764014.08 | I112: =L24 -> -17161063.63 | J112: -1081391.53 | K112: 241611.55 | L112: -18000843.61 | M112: 9763170.47 | Q112: 1850 | R112: Line Transformers | S112: 33179768.17 | T112: =1158214+23878 -> 1182092 | U112: -6516504 | V112: -279268 | W112: 27566088.17 | Y112: -16480020.68 | Z112: =-648818-10554 -> -659372 | AA112: 1825450 | AB112: 241612 | AC112: -15072330.68 | AD112: 12493757.49
B113: 1855 | C113: Services (Overhead and Underground) | D113: 18915169.36 | E113: =6461204.31+4892 -> 6466096.31 | G113: 25381265.67 | I113: =L25 -> -13445208.36 | J113: -549515.18 | L113: -13994723.54 | M113: 11386542.13 | Q113: 1855 | R113: Services (Overhead) | S113: 6153155.86 | T113: 84556 | W113: 6237711.86 | Y113: -4322423.08 | Z113: =-67155-566 -> -67721 | AC113: -4390144.08 | AD113: 1847567.78
D114: 0 | G114: 0 | L114: 0 | M114: 0 | Q114: 1855 | R114: Services (Underground) | S114: 12762013.46 | T114: =417732+4892 -> 422624 | U114: 5958916 | W114: 19143553.46 | Y114: -8957043.26 | Z114: -404098 | AA114: -1669254 | AC114: -11030395.26 | AD114: 8113158.2
B115: 1860 | C115: Meters | D115: 7890055.28 | E115: =267208.94+373 -> 267581.94 | F115: -67289.14 | G115: 8090348.08 | I115: =L27 -> -2345172.78 | J115: -715283.64 | K115: 38096.89 | L115: -3022359.53 | M115: 5067988.55 | Q115: 1860 | R115: Meters | S115: 7890055.28 | T115: =267210+373 -> 267583 | V115: -67289 | W115: 8090349.28 | Y115: -2338828.78 | Z115: =-50847-664437 -> -715284 | AB115: 38097 | AC115: -3016015.78 | AD115: 5074333.5
B116: 1905 | C116: Land | D116: =G29 -> 182214.88 | G116: 182214.88 | L116: 0 | M116: 182214.88 | Q116: 1905 | R116: Land | S116: =W29 -> 182214.88 | W116: 182214.88 | Y116: =AC29 -> 0 | AC116: 0 | AD116: 182214.88
B117: 1908 | C117: Buildings & Fixtures | D117: 6241285.17 | E117: 545228.59 | G117: 6786513.76 | I117: =L30 -> -2518369.23 | J117: =-143879.82+9643 -> -134236.82 | L117: -2652606.05 | M117: 4133907.71 | Q117: 1908 | R117: Buildings & Fixtures | S117: 6232584.67 | T117: 61943 | W117: 6294527.67 | Y117: -2408980.06 | Z117: -120912 | AC117: -2529892.06 | AD117: 3764635.61
B118: 1908 | C118: HVAC | D118: 0 | G118: 0 | L118: 0 | M118: 0 | Q118: 1908 | R118: HVAC | S118: 8700 | W118: =S118+U118+T118+V118 -> 8700 | Y118: -200 | Z118: -895 | AC118: -1095 | AD118: 7605
B119: 1908 | C119: Parking & Paving | D119: 0 | G119: 0 | L119: 0 | M119: 0 | Q119: 1908 | R119: Parking & Paving | S119: 0 | T119: 118644 | W119: 118644 | Y119: 0 | Z119: -6133 | AC119: -6133 | AD119: 112511
B120: 1908 | C120: Roof | D120: 0 | G120: 0 | L120: 0 | M120: 0 | Q120: 1908 | R120: Roof | S120: 0 | T120: 364641 | W120: 364641 | Y120: 0 | Z120: =-18896 -> -18896 | AC120: -18896 | AD120: 345745
B121: 1910 | C121: Leasehold Improvements | D121: 0 | G121: 0 | L121: 0 | M121: 0 | Q121: 1910 | R121: Leasehold Improvements | S121: 0 | W121: 0 | Y121: 0 | AC121: 0 | AD121: 0
B122: 1915 | C122: Office Furniture & Equipment (10 years) | D122: 1041169.03 | E122: 46724.83 | G122: 1087893.86 | I122: =L35 -> -896850.2 | J122: -30220.39 | L122: -927070.59 | M122: 160823.27 | Q122: 1915 | R122: Office Furniture & Equipment (10 years) | S122: 1041169.03 | T122: 46725 | W122: 1087894.03 | Y122: -896858.41 | Z122: =-805-29415 -> -30220 | AC122: -927078.41 | AD122: 160815.62
B123: 1915 | C123: Office Furniture & Equipment (5 years) | D123: 0 | G123: 0 | L123: 0 | M123: 0 | Q123: 1915 | R123: Office Furniture & Equipment (5 years) | S123: 0 | W123: 0 | Y123: 0 | AC123: 0 | AD123: 0
B124: 1920 | C124: Computer Equipment - Hardware | D124: 1610249 | E124: 172434.77 | G124: 1782683.77 | I124: =L37 -> -1390142 | J124: -84416.62 | L124: -1474558.62 | M124: 308125.15 | Q124: 1920 | R124: Computer Equipment - Hardware | S124: 1610249.38 | T124: 172435 | W124: 1782684.38 | Y124: -1416234.23 | Z124: -101555 | AC124: -1517789.23 | AD124: 264895.15
B125: 1920 | C125: Computer Equip.-Hardware(Post Mar. 22/04) | D125: 0 | G125: =D125+E125+F125 -> 0 | L125: =I125+J125+K125 -> 0 | M125: 0 | Q125: 1920 | R125: Computer Equip.-Hardware(Post Mar. 22/04) | S125: 0 | W125: 0 | Y125: 0 | AC125: 0 | AD125: 0
B126: 1920 | C126: Computer Equip.-Hardware(Post Mar. 19/07) | D126: 0 | G126: 0 | L126: 0 | M126: 0 | Q126: 1920 | R126: Computer Equip.-Hardware(Post Mar. 19/07) | S126: 0 | W126: 0 | Y126: 0 | AC126: 0 | AD126: 0
B127: 1925 | C127: Computer Equip.-Software | D127: 2129670.24 | E127: =202365.83+26565+32392 -> 261322.83 | G127: 2390993.07 | I127: =L40 -> -1763300 | J127: -134276.47 | L127: -1897576.47 | M127: 493416.6 | Q127: 1925 | R127: Computer Equip.-Software (Application) | S127: 2129670.58 | T127: =117043+26565+32392 -> 176000 | W127: 2305670.58 | Y127: -1763337.7 | Z127: =-84350-20613-21327 -> -126290 | AC127: -1889627.7 | AD127: 416042.88
D128: 0 | G128: 0 | L128: =I128+J128+K128 -> 0 | M128: 0 | Q128: 1925 | R128: Computer Equip.-Software (Server) | S128: 0 | T128: 85323 | W128: 85323 | Y128: 0 | Z128: -22678 | AC128: -22678 | AD128: 62645
B129: 1930 | C129: Transportation Equipment | D129: 0 | G129: 0 | L129: 0 | M129: 0 | Q129: 1930 | R129: Transportation Equipment | S129: 0 | W129: 0 | Y129: 0 | AC129: 0 | AD129: 0
B130: 1935 | C130: Stores Equipment | D130: 56186.63 | G130: 56186.63 | I130: =L43 -> -56186.63 | L130: -56186.63 | M130: 0 | Q130: 1935 | R130: Stores Equipment | S130: 56186.63 | W130: 56186.63 | Y130: -56186.63 | AC130: -56186.63 | AD130: 0
B131: 1940 | C131: Tools, Shop & Garage Equipment | D131: 4284 | G131: 4284 | I131: =L44 -> -3855.2 | J131: -428.4 | L131: -4283.6 | M131: 0.4 | Q131: 1940 | R131: Tools, Shop & Garage Equipment | S131: 4284 | W131: 4284 | Y131: -3855.6 | Z131: -428 | AC131: -4283.6 | AD131: 0.4
B132: 1945 | C132: Measurement & Testing Equipment | D132: 20903.01 | G132: 20903.01 | I132: =L45 -> -18811.3 | J132: -2090 | L132: -20901.3 | M132: 1.71 | Q132: 1945 | R132: Measurement & Testing Equipment | S132: 20903.01 | W132: 20903.01 | Y132: -18812.1 | Z132: -2091 | AC132: -20903.1 | AD132: -0.09
B133: 1950 | C133: Power Operated Equipment | D133: 0 | G133: 0 | L133: 0 | M133: 0 | Q133: 1950 | R133: Power Operated Equipment | S133: 0 | W133: 0 | Y133: 0 | AC133: 0 | AD133: 0
B134: 1955 | C134: Communications Equipment | D134: 78103.41 | G134: 78103.41 | I134: =L47 -> -78103.41 | L134: -78103.41 | M134: 0 | Q134: 1955 | R134: Communications Equipment | S134: 78103.41 | W134: =S134+U134+T134+V134 -> 78103.41 | Y134: -78103.41 | AC134: -78103.41 | AD134: 0
B135: 1955 | C135: Communication Equipment (Smart Meters) | D135: 0 | G135: 0 | L135: 0 | M135: 0 | Q135: 1955 | R135: Communication Equipment (Smart Meters) | S135: 0 | W135: 0 | Y135: 0 | AC135: 0 | AD135: 0
B136: 1960 | C136: Miscellaneous Equipment | D136: 0 | G136: 0 | L136: 0 | M136: 0 | Q136: 1960 | R136: Miscellaneous Equipment | S136: 0 | W136: 0 | Y136: 0 | AC136: 0 | AD136: 0
B137: 1970 | C137: Load Management Controls Customer Premises | D137: 0 | G137: 0 | L137: 0 | M137: 0 | Q137: 1970 | R137: Load Management Controls Customer Premises | S137: 0 | W137: 0 | Y137: 0 | AC137: 0 | AD137: 0
B138: 1975 | C138: Load Management Controls Utility Premises | D138: 0 | G138: 0 | L138: 0 | M138: 0 | Q138: 1975 | R138: Load Management Controls Utility Premises | S138: 0 | W138: 0 | Y138: 0 | AC138: 0 | AD138: 0
B139: 1980 | C139: System Supervisor Equipment | D139: 2426198.34 | E139: 65321.77 | G139: 2491520.11 | I139: =L52 -> -1794036.43 | J139: -89278.99 | L139: -1883315.42 | M139: 608204.69 | Q139: 1980 | R139: System Supervisor Equipment | S139: 2426198.75 | T139: 65322 | W139: 2491520.75 | Y139: -1800055.67 | Z139: -105542 | AC139: -1905597.67 | AD139: 585923.08
B140: 1985 | C140: Miscellaneous Fixed Assets | D140: 0 | G140: 0 | L140: 0 | M140: 0 | Q140: 1985 | R140: Miscellaneous Fixed Assets | S140: 0 | W140: 0 | Y140: 0 | AC140: 0 | AD140: 0
B141: 1990 | C141: Other Tangible Property | D141: 0 | G141: 0 | L141: 0 | M141: 0 | Q141: 1990 | R141: Other Tangible Property | S141: 0 | W141: 0 | Y141: 0 | AC141: 0 | AD141: 0
B142: 1995 | C142: Contributions & Grants | D142: -31440584.43 | E142: =-4275592+1535592-157207 -> -2897207 | G142: -34337791.43 | I142: =L55 -> 9103967 | J142: 1317949.41 | L142: 10421916.41 | M142: -23915875.02 | Q142: 1995 | R142: Contributions & Grants | S142: -31440584.43 | T142: =-4275592+1535592-157207 -> -2897207 | W142: -34337791.43 | Y142: 8500961.21 | Z142: =677344+1 -> 677345 | AC142: 9178306.21 | AD142: -25159485.22
B143: 2440 | C143: Deferred Revenue5 | D143: 0 | G143: 0 | L143: 0 | M143: 0 | Q143: 2440 | R143: Deferred Revenue5 | S143: 0 | W143: 0 | Y143: 0 | AC143: 0 | AD143: 0
B144: 2075 | C144: Non Rate-Regulated Utility Assets | D144: 91998.19 | E144: 293708 | G144: 385706.19 | I144: =L57 -> 0 | J144: -9643 | L144: =I144+J144+K144 -> -9643 | M144: =G144+L144 -> 376063.19 | Q144: 2075 | R144: Non Rate-Regulated Utility Assets | S144: 91998.19 | T144: 293708 | W144: 385706.19 | Y144: 0 | Z144: -9643 | AC144: -9643 | AD144: 376063.19
C145: Sub-Total | D145: =SUM(D98:D144) -> 148917724.7 | E145: =SUM(E98:E144) -> 6592849.17 | F145: =SUM(F98:F144) -> -406542.08 | G145: =SUM(G98:G144) -> 155104031.8 | I145: =SUM(I98:I144) -> -81441992.54 | J145: =SUM(J98:J144) -> -5223723.56 | K145: =SUM(K98:K144) -> 339693.44 | L145: =SUM(L98:L144) -> -86326022.66 | M145: =SUM(M98:M144) -> 68778009.12 | R145: Sub-Total | S145: =SUM(S98:S144) -> 147825758.3 | T145: =SUM(T98:T144) -> 5826634 | U145: =SUM(U98:U144) -> 0 | V145: =SUM(V98:V144) -> -406542 | W145: =SUM(W98:W144) -> 153245850.3 | Y145: =SUM(Y98:Y144) -> -79108677.6 | Z145: -3681292 | AA145: 0 | AB145: 339694 | AC145: -82450275.6 | AD145: 70795574.72
C146: Less Socialized Renewable Energy Generation Investments (input as negative) | G146: =D146+E146+F146 -> 0 | L146: =I146+J146+K146 -> 0 | M146: =G146+L146 -> 0 | R146: Less Socialized Renewable Energy Generation Investments (input as negative)
C147: Less Other Non Rate-Regulated Utility Assets (input as negative) | D147: -91998 | E147: -293707.56 | G147: =D147+E147+F147 -> -385705.56 | I147: 0 | J147: 9643 | L147: =I147+J147+K147 -> 9643 | M147: =G147+L147 -> -376062.56 | R147: Less Other Non Rate-Regulated Utility Assets (input as negative) | S147: =W60 -> -91998.19 | T147: -293707.56 | W147: =S147+U147+T147+V147 -> -385705.75 | Y147: =AC60 -> 0 | Z147: 9643 | AC147: =Y147+Z147+AA147+AB147 -> 9643 | AD147: =W147+AC147 -> -376062.75
C148: Total PP&E | D148: =SUM(D145:D147) -> 148825726.7 | E148: =SUM(E145:E147) -> 6299141.61 | F148: =SUM(F145:F147) -> -406542.08 | G148: =SUM(G145:G147) -> 154718326.2 | I148: =SUM(I145:I147) -> -81441992.54 | J148: =SUM(J145:J147) -> -5214080.56 | K148: =SUM(K145:K147) -> 339693.44 | L148: =SUM(L145:L147) -> -86316379.66 | M148: =SUM(M145:M147) -> 68401946.56 | R148: Total PP&E | S148: =SUM(S145:S147) -> 147733760.1 | T148: =SUM(T145:T147) -> 5532926.44 | V148: =SUM(V145:V147) -> -406542 | W148: =SUM(W145:W147) -> 152860144.6 | Y148: =SUM(Y145:Y147) -> -79108677.6 | Z148: =SUM(Z145:Z147) -> -3671649 | AB148: =SUM(AB145:AB147) -> 339694 | AC148: =SUM(AC145:AC147) -> -82440632.6 | AD148: =SUM(AD145:AD147) -> 70419511.97
G150: Less: Fully Allocated Depreciation | W150: Less: Fully Allocated Depreciation
C151: Transportation | G151: Transportation | R151: Transportation | W151: Transportation
C152: Stores Equipment | G152: Stores Equipment | R152: Stores Equipment | W152: Stores Equipment
G153: Net Depreciation | J153: =J148-J151-J152 -> -5214080.56 | W153: Net Depreciation | Z153: =Z148-Z151-Z152 -> -3671649
A159: Notes:
A161: 1 | B161: Tables in the format outlined above covering all fixed asset accounts should be submitted for the Test Year, Bridge Year and all relevant historical years. At a minimum , the applicant must provide data for the earlier of: 1) all historical years back to its last rebasing; or 2) at least three years of historical actuals, in addition to Bridge Year and Test Year forecasts.
A164: 2 | B164: The "CCA Class" for fixed assets should agree with the CCA Class used for tax purposes in Tax Returns. Fixed Assets sub-components may be used where the underlying asset components are classified under multiple CCA Classes for tax purposes. If an applicant uses any different classes from those shown in the table, an explanation should be provided. (also see note 3 below).
A167: 3 | B167: The table may need to be customized for a utility's asset categories or for any new asset accounts announced or authorized by the Board.
A169: 4 | B169: The additions column (E) must not include construction work in progress (CWIP).
A171: 5 | B171: Effective on the date of IFRS adoption, customer contributions will no longer be recorded in Account 1995 Contributions & Grants, but will be recorded in Account 2440, Deferred Revenues.
A173: 6 | B173: Where a distributor for general financial reporting purposes under IFRS has accounted for the amount of gain or loss on the retirement of assets in a pool of like assets as a charge or credit to income, for reporting and rate application filings the distributor shall reclassify such gains and losses as depreciation expense, and disclose the amount separately.
